Workbook

Sheet Orçamento
O3: UNIDADE ESCOLAR | V3: CÓDIGO INEP
O4: COLÉGIO ESTADUAL JOÃO BÊNNIO | V4: 52035131
A6: Nmax | M6: Ajustar altura? | O6: OBRA | S6: DATA | V6: CIDADE
A7: =MAX($C$18:$C$205) -> 3 | M7: NÃO | O7: AMPLIAÇÃO E REFORMA | S7: 2020-04-08 | V7: GOIÂNIA
O9: CRE | R9: ENDEREÇO | V9: REFERÊNCIA AGETOP
O10: GOIÂNIA | R10: RUA JC QUADRA 140 AREA VERDE S/N, JD CURITIBA III, CEP:74481-130 | V10: DEZ/18 | W10: ONERADA
O12: ÁREA EXISTENTE (M²) | R12: ÁREA A CONSTRUIR (M²) | S12: ÁREA TOTAL CONSTRUÍDA (M²) | V12: REFERÊNCIA SINAPI
O13: 680 | R13: 525 | S13: 1205 | V13: AGO/19 | W13: ONERADA
L15: FILTRO | O15: PLANILHA ORÇAMENTÁRIA
A16: Nível E | B16: Save Nivel | C16: Nível C | D16: Altura | E16: n1 | F16: n2 | G16: n3 | H16: n4 | I16: n5 | J16: Czero | K16: Cnível | L16: ↓ | M16: Nível | N16: Nível Corrigido | O16: ITEM | P16: TABELA | Q16: CODIGO | R16: DESCRIÇÃO DOS SERVIÇOS | S16: UNID | T16: QUANT | U16: MAT | V16: MO | W16: T.SERVIÇO | X16: OBSERVAÇÕES¹
A17: =CHOOSE(1+LOG(1+2*(ORÇAMENTO.Nivel="Nível 1")+4*(ORÇAMENTO.Nivel="Nível 2")+8*(ORÇAMENTO.Nivel="Nível 3")+16*(ORÇAMENTO.Nivel="Nível 4")+32*(ORÇAMENTO.Nivel="Serviço"),2),0,1,2,3,4,"S") -> S | B17: =IF(OR(C17="s",C17=0),OFFSET(B17,-1,0),C17) -> Save Nivel | C17: =IF(OFFSET(C17,-1,0)="L",1,IF(OFFSET(C17,-1,0)=1,2,IF(OR(A17="s",A17=0),"S",IF(AND(OFFSET(C17,-1,0)=2,A17=4),3,IF(AND(OR(OFFSET(C17,-1,0)="s",OFFSET(C17,-1,0)=0),A17<>"s",A17>OFFSET(B17,-1,0)),OFFSET(B17,-1,0),A17))))) -> S | D17: =IF(OR(C17="S",C17=0),0,IF(ISERROR(K17),J17,SMALL(J17:K17,1))) -> 0 | E17: =IF($C17=1,OFFSET(E17,-1,0)+1,OFFSET(E17,-1,0)) -> n1 | F17: =IF($C17=1,0,IF($C17=2,OFFSET(F17,-1,0)+1,OFFSET(F17,-1,0))) -> n2 | G17: =IF(AND($C17<=2,$C17<>0),0,IF($C17=3,OFFSET(G17,-1,0)+1,OFFSET(G17,-1,0))) -> n3 | H17: =IF(AND($C17<=3,$C17<>0),0,IF($C17=4,OFFSET(H17,-1,0)+1,OFFSET(H17,-1,0))) -> n4 | I17: =IF(AND($C17<=4,$C17<>0),0,IF(AND($C17="S",$W17>0),OFFSET(I17,-1,0)+1,OFFSET(I17,-1,0))) -> n5 | J17: =IF(OR($C17="S",$C17=0),0,MATCH(0,OFFSET($D17,1,$C17,ROW($C$205)-ROW($C17)),0)) -> 0 | K17: =IF(OR($C17="S",$C17=0),0,MATCH(OFFSET($D17,0,$C17)+1,OFFSET($D17,1,$C17,ROW($C$205)-ROW($C17)),0)) -> 0 | M17: Serviço | N17: Serviço | O17: - | P17: SINAPI | R17: (sem código) | S17: - | U17: 0 | V17: 0 | W17: 0
A18: 0 | C18: L | D18: =COUNTA(OFFSET(D18,1,0):D$205) -> 186 | E18: =LEFT(O19,1)-1 -> 0 | L18: F | M18: LOTE | N18: LOTE | O18: AMPLIAÇÃO E REFORMA - COLÉGIO ESTADUAL JOÃO BÊNNIO | W18: 0
A19: 1 | B19: =IF(OR(C19="s",C19=0),OFFSET(B19,-1,0),C19) -> 1 | C19: =IF(OFFSET(C19,-1,0)="L",1,IF(OFFSET(C19,-1,0)=1,2,IF(OR(A19="s",A19=0),"S",IF(AND(OFFSET(C19,-1,0)=2,A19=4),3,IF(AND(OR(OFFSET(C19,-1,0)="s",OFFSET(C19,-1,0)=0),A19<>"s",A19>OFFSET(B19,-1,0)),OFFSET(B19,-1,0),A19))))) -> 1 | D19: =IF(OR(C19="S",C19=0),0,IF(ISERROR(K19),J19,SMALL(J19:K19,1))) -> 139 | E19: =IF($C19=1,OFFSET(E19,-1,0)+1,OFFSET(E19,-1,0)) -> 1 | F19: =IF($C19=1,0,IF($C19=2,OFFSET(F19,-1,0)+1,OFFSET(F19,-1,0))) -> 0 | G19: =IF(AND($C19<=2,$C19<>0),0,IF($C19=3,OFFSET(G19,-1,0)+1,OFFSET(G19,-1,0))) -> 0 | H19: =IF(AND($C19<=3,$C19<>0),0,IF($C19=4,OFFSET(H19,-1,0)+1,OFFSET(H19,-1,0))) -> 0 | I19: 0 | J19: =IF(OR($C19="S",$C19=0),0,MATCH(0,OFFSET($D19,1,$C19,ROW($C$205)-ROW($C19)),0)) -> 186 | K19: =IF(OR($C19="S",$C19=0),0,MATCH(OFFSET($D19,0,$C19)+1,OFFSET($D19,1,$C19,ROW($C$205)-ROW($C19)),0)) -> 139 | L19: F | M19: Nível 1 | N19: Nível 1 | O19: 1. | P19: AGETOP | R19: AMPLIAÇÃO E REFORMA | W19: 0
A20: =CHOOSE(1+LOG(1+2*(ORÇAMENTO.Nivel="Nível 1")+4*(ORÇAMENTO.Nivel="Nível 2")+8*(ORÇAMENTO.Nivel="Nível 3")+16*(ORÇAMENTO.Nivel="Nível 4")+32*(ORÇAMENTO.Nivel="Serviço"),2),0,1,2,3,4,"S") -> 2 | B20: 2 | C20: =IF(OFFSET(C20,-1,0)="L",1,IF(OFFSET(C20,-1,0)=1,2,IF(OR(A20="s",A20=0),"S",IF(AND(OFFSET(C20,-1,0)=2,A20=4),3,IF(AND(OR(OFFSET(C20,-1,0)="s",OFFSET(C20,-1,0)=0),A20<>"s",A20>OFFSET(B20,-1,0)),OFFSET(B20,-1,0),A20))))) -> 2 | D20: 9 | E20: =IF($C20=1,OFFSET(E20,-1,0)+1,OFFSET(E20,-1,0)) -> 1 | F20: =IF($C20=1,0,IF($C20=2,OFFSET(F20,-1,0)+1,OFFSET(F20,-1,0))) -> 1 | G20: =IF(AND($C20<=2,$C20<>0),0,IF($C20=3,OFFSET(G20,-1,0)+1,OFFSET(G20,-1,0))) -> 0 | H20: =IF(AND($C20<=3,$C20<>0),0,IF($C20=4,OFFSET(H20,-1,0)+1,OFFSET(H20,-1,0))) -> 0 | I20: =IF(AND($C20<=4,$C20<>0),0,IF(AND($C20="S",$W20>0),OFFSET(I20,-1,0)+1,OFFSET(I20,-1,0))) -> 0 | J20: 138 | K20: 9 | M20: Nível 2 | N20: Nível 2 | O20: - | P20: SINAPI | R20: SERVIÇOS PRELIMINARES | S20: - | W20: 0
A21: 3 | B21: 3 | C21: 3 | D21: 2 | E21: 1 | F21: 1 | G21: 1 | H21: 0 | I21: 0 | J21: 8 | K21: 2 | M21: Nível 3 | N21: Nível 3 | O21: - | P21: SINAPI | R21: FORRO PVC SEM ESTRUTURA | S21: - | W21: 0
A22: S | B22: 3 | C22: S | D22: 0 | E22: 1 | F22: 1 | G22: 1 | H22: 0 | I22: 0 | J22: 0 | K22: 0 | M22: Serviço | N22: Serviço | O22: - | P22: SINAPI | Q22: 97640 | R22: REMOÇÃO DE FORROS DE DRYWALL, PVC E FIBROMINERAL, DE FORMA MANUAL, SEM REAPROVEITAMENTO. AF_12/2017 | S22: M2 | T22: 545 | W22: 0
A23: 3 | B23: 3 | C23: 3 | D23: 2 | E23: 1 | F23: 1 | G23: 2 | H23: 0 | I23: 0 | J23: 6 | K23: 2 | M23: Nível 3 | N23: Nível 3 | O23: - | P23: SINAPI | R23: ACESSIBILIDADE | S23: - | W23: 0
A24: S | B24: 3 | C24: S | D24: 0 | E24: 1 | F24: 1 | G24: 2 | H24: 0 | I24: 0 | J24: 0 | K24: 0 | M24: Serviço | N24: Serviço | O24: - | P24: AGETOP | Q24: 20109 | R24: DEM.PISO CIMENT.SOBRE LASTRO CONC.C/TR.ATE CB. E CARGA | S24: m2 | T24: 105 | W24: 0
A25: 3 | B25: 3 | C25: 3 | D25: 2 | E25: 1 | F25: 1 | G25: 3 | H25: 0 | I25: 0 | J25: 4 | K25: 2 | M25: Nível 3 | N25: Nível 3 | O25: - | P25: SINAPI | R25: REFORMA DA QUADRA | S25: - | W25: 0
A26: S | B26: 3 | C26: S | D26: 0 | E26: 1 | F26: 1 | G26: 3 | H26: 0 | I26: 0 | J26: 0 | K26: 0 | M26: Serviço | N26: Serviço | O26: - | P26: AGETOP | Q26: 20109 | R26: DEM.PISO CIMENT.SOBRE LASTRO CONC.C/TR.ATE CB. E CARGA | S26: m2 | T26: 550 | W26: 0
A27: 3 | B27: 3 | C27: 3 | D27: 2 | E27: 1 | F27: 1 | G27: 4 | H27: 0 | I27: 0 | J27: 2 | M27: Nível 3 | N27: Nível 3 | O27: - | P27: SINAPI | R27: OUTROS | S27: - | W27: 0
A28: S | B28: 3 | C28: S | D28: 0 | E28: 1 | F28: 1 | G28: 4 | H28: 0 | I28: 0 | J28: 0 | K28: 0 | M28: Serviço | N28: Serviço | O28: - | P28: SINAPI | Q28: 74209/1 | R28: PLACA DE OBRA EM CHAPA DE ACO GALVANIZADO | S28: M2 | T28: 7.5 | W28: 0 | X28: Referência: AGETOP - 21301
A29: 2 | B29: 2 | C29: 2 | D29: 3 | E29: 1 | F29: 2 | G29: 0 | H29: 0 | I29: 0 | J29: 129 | K29: 3 | M29: Nível 2 | N29: Nível 2 | O29: - | P29: SINAPI | R29: TRANSPORTES | S29: - | W29: 0
A30: S | B30: 2 | C30: S | D30: 0 | E30: 1 | F30: 2 | G30: 0 | H30: 0 | I30: 0 | J30: 0 | K30: 0 | M30: Serviço | N30: Serviço | O30: - | P30: SINAPI | Q30: 72900 | R30: TRANSPORTE DE ENTULHO COM CAMINHAO BASCULANTE 6 M3, RODOVIA PAVIMENTADA, DMT 0,5 A 1,0 KM | S30: M3 | T30: 36 | W30: 0
A31: S | B31: 2 | C31: S | D31: 0 | E31: 1 | F31: 2 | G31: 0 | H31: 0 | I31: 0 | J31: 0 | K31: 0 | M31: Serviço | N31: Serviço | O31: - | P31: SINAPI | Q31: 72897 | R31: CARGA MANUAL DE ENTULHO EM CAMINHAO BASCULANTE 6 M3 | S31: M3 | T31: 36 | W31: 0
A32: 2 | B32: 2 | C32: 2 | D32: 3 | E32: 1 | F32: 3 | G32: 0 | H32: 0 | I32: 0 | J32: 126 | K32: 3 | M32: Nível 2 | N32: Nível 2 | O32: - | P32: SINAPI | R32: SERVIÇO EM TERRA | S32: - | W32: 0
A33: S | B33: 2 | C33: S | D33: 0 | E33: 1 | F33: 3 | G33: 0 | H33: 0 | I33: 0 | J33: 0 | K33: 0 | M33: Serviço | N33: Serviço | O33: - | P33: AGETOP | Q33: 41140 | R33: REGULARIZAÇÃO DO TERRENO SEM APILOAMENTO COM TRANSPORTE MANUAL DA TERRA ESCAVADA | S33: m2 | T33: 550 | W33: 0
A34: S | B34: 2 | C34: S | D34: 0 | E34: 1 | F34: 3 | G34: 0 | H34: 0 | I34: 0 | J34: 0 | K34: 0 | M34: Serviço | N34: Serviço | O34: - | P34: AGETOP | Q34: 41002 | R34: APILOAMENTO | S34: m2 | T34: 550 | W34: 0
A35: 2 | B35: 2 | C35: 2 | D35: 77 | E35: 1 | F35: 4 | G35: 0 | H35: 0 | I35: 0 | J35: 123 | K35: 77 | M35: Nível 2 | N35: Nível 2 | O35: - | R35: INSTALAÇÕES ELÉTRICAS | S35: - | W35: 0
A36: 3 | B36: 3 | C36: 3 | D36: 64 | E36: 1 | F36: 4 | G36: 1 | H36: 0 | I36: 0 | J36: 76 | K36: 64 | M36: Nível 3 | N36: Nível 3 | O36: - | P36: SINAPI | R36: INST. ELÉTRICAS | S36: - | W36: 0
A37: S | B37: 3 | C37: S | D37: 0 | E37: 1 | F37: 4 | G37: 1 | H37: 0 | I37: 0 | J37: 0 | K37: 0 | M37: Serviço | N37: Serviço | O37: - | P37: SINAPI | Q37: 74131/4 | R37: QUADRO DE DISTRIBUICAO DE ENERGIA DE EMBUTIR, EM CHAPA METALICA, PARA 18 DISJUNTORES TERMOMAGNETICOS MONOPOLARES, COM BARRAMENTO TRIFASICO E NEUTRO, FORNECIMENTO E INSTALACAO | S37: UN | T37: 2 | W37: 0
A38: S | B38: 3 | C38: S | D38: 0 | E38: 1 | F38: 4 | G38: 1 | H38: 0 | I38: 0 | J38: 0 | K38: 0 | M38: Serviço | N38: Serviço | O38: - | P38: SINAPI | Q38: 74131/6 | R38: QUADRO DE DISTRIBUICAO DE ENERGIA DE EMBUTIR, EM CHAPA METALICA, PARA 32 DISJUNTORES TERMOMAGNETICOS MONOPOLARES, COM BARRAMENTO TRIFASICO E NEUTRO, FORNECIMENTO E INSTALACAO | S38: UN | T38: 1 | W38: 0 | X38: Referência: AGETOP - 72198
A39: S | B39: 3 | C39: S | D39: 0 | E39: 1 | F39: 4 | G39: 1 | H39: 0 | I39: 0 | J39: 0 | K39: 0 | M39: Serviço | N39: Serviço | O39: - | P39: SINAPI | Q39: 93673 | R39: DISJUNTOR TRIPOLAR TIPO DIN, CORRENTE NOMINAL DE 50A - FORNECIMENTO E INSTALAÇÃO. AF_04/2016 | S39: UN | T39: 2 | W39: 0 | X39: Referência: AGETOP - 71174
A40: S | B40: 3 | C40: S | D40: 0 | E40: 1 | F40: 4 | G40: 1 | H40: 0 | I40: 0 | J40: 0 | K40: 0 | M40: Serviço | N40: Serviço | O40: - | P40: AGETOP | Q40: 71175 | R40: DISJUNTOR TRIPOLAR DE 60 A 100-A | S40: Un | T40: 4 | W40: 0
A41: S | B41: 3 | C41: S | D41: 0 | E41: 1 | F41: 4 | G41: 1 | H41: 0 | I41: 0 | J41: 0 | K41: 0 | M41: Serviço | N41: Serviço | O41: - | P41: SINAPI | Q41: 93657 | R41: DISJUNTOR MONOPOLAR TIPO DIN, CORRENTE NOMINAL DE 32A - FORNECIMENTO E INSTALAÇÃO. AF_04/2016 | S41: UN | T41: 1 | W41: 0
A42: S | B42: 3 | C42: S | D42: 0 | E42: 1 | F42: 4 | G42: 1 | H42: 0 | I42: 0 | J42: 0 | K42: 0 | M42: Serviço | N42: Serviço | O42: - | P42: SINAPI | Q42: 93656 | R42: DISJUNTOR MONOPOLAR TIPO DIN, CORRENTE NOMINAL DE 25A - FORNECIMENTO E INSTALAÇÃO. AF_04/2016 | S42: UN | T42: 10 | W42: 0
A43: S | B43: 3 | C43: S | D43: 0 | E43: 1 | F43: 4 | G43: 1 | H43: 0 | I43: 0 | J43: 0 | K43: 0 | M43: Serviço | N43: Serviço | O43: - | P43: SINAPI | Q43: 93654 | R43: DISJUNTOR MONOPOLAR TIPO DIN, CORRENTE NOMINAL DE 16A - FORNECIMENTO E INSTALAÇÃO. AF_04/2016 | S43: UN | T43: 10 | W43: 0
A44: S | B44: 3 | C44: S | D44: 0 | E44: 1 | F44: 4 | G44: 1 | H44: 0 | I44: 0 | J44: 0 | K44: 0 | M44: Serviço | N44: Serviço | O44: - | P44: SINAPI | Q44: 93653 | R44: DISJUNTOR MONOPOLAR TIPO DIN, CORRENTE NOMINAL DE 10A - FORNECIMENTO E INSTALAÇÃO. AF_04/2016 | S44: UN | T44: 18 | W44: 0
A45: S | B45: 3 | C45: S | D45: 0 | E45: 1 | F45: 4 | G45: 1 | H45: 0 | I45: 0 | J45: 0 | K45: 0 | M45: Serviço | N45: Serviço | O45: - | P45: AGETOP | Q45: 71184 | R45: DISPOSITIVO DE PROTEÇÃO CONTRA SURTOS (D.P.S.) 275V DE 8 A 40KA | S45: Un | T45: 3 | W45: 0
A46: S | B46: 3 | C46: S | D46: 0 | E46: 1 | F46: 4 | G46: 1 | H46: 0 | I46: 0 | J46: 0 | K46: 0 | M46: Serviço | N46: Serviço | O46: - | P46: AGETOP | Q46: 71451 | R46: INTERRUPTOR DIFERENCIAL RESIDUAL (D.R.) BIPOLAR DE 40A-30mA | S46: Un | T46: 6 | W46: 0
A47: S | B47: 3 | C47: S | D47: 0 | E47: 1 | F47: 4 | G47: 1 | H47: 0 | I47: 0 | J47: 0 | K47: 0 | M47: Serviço | N47: Serviço | O47: - | P47: SINAPI | Q47: 91926 | R47: CABO DE COBRE FLEXÍVEL ISOLADO, 2,5 MM², ANTI-CHAMA 450/750 V, PARA CIRCUITOS TERMINAIS - FORNECIMENTO E INSTALAÇÃO. AF_12/2015 | S47: M | T47: 3176 | W47: 0 | X47: Referência: AGETOP - 70563
A48: S | B48: 3 | C48: S | D48: 0 | E48: 1 | F48: 4 | G48: 1 | H48: 0 | I48: 0 | J48: 0 | K48: 0 | M48: Serviço | N48: Serviço | O48: - | P48: SINAPI | Q48: 91928 | R48: CABO DE COBRE FLEXÍVEL ISOLADO, 4 MM², ANTI-CHAMA 450/750 V, PARA CIRCUITOS TERMINAIS - FORNECIMENTO E INSTALAÇÃO. AF_12/2015 | S48: M | T48: 666.66 | W48: 0 | X48: Referência: AGETOP - 70564
A49: S | B49: 3 | C49: S | D49: 0 | E49: 1 | F49: 4 | G49: 1 | H49: 0 | I49: 0 | J49: 0 | K49: 0 | M49: Serviço | N49: Serviço | O49: - | P49: SINAPI | Q49: 91930 | R49: CABO DE COBRE FLEXÍVEL ISOLADO, 6 MM², ANTI-CHAMA 450/750 V, PARA CIRCUITOS TERMINAIS - FORNECIMENTO E INSTALAÇÃO. AF_12/2015 | S49: M | T49: 105.84 | W49: 0 | X49: Referência: AGETOP - 70565
A50: S | B50: 3 | C50: S | D50: 0 | E50: 1 | F50: 4 | G50: 1 | H50: 0 | I50: 0 | J50: 0 | K50: 0 | M50: Serviço | N50: Serviço | O50: - | P50: SINAPI | Q50: 92979 | R50: CABO DE COBRE FLEXÍVEL ISOLADO, 10 MM², ANTI-CHAMA 450/750 V, PARA DISTRIBUIÇÃO - FORNECIMENTO E INSTALAÇÃO. AF_12/2015 | S50: M | T50: 5.54 | W50: 0
A51: S | B51: 3 | C51: S | D51: 0 | E51: 1 | F51: 4 | G51: 1 | H51: 0 | I51: 0 | J51: =IF(OR($C51="S",$C51=0),0,MATCH(0,OFFSET($D51,1,$C51,ROW($C$205)-ROW($C51)),0)) -> 0 | K51: =IF(OR($C51="S",$C51=0),0,MATCH(OFFSET($D51,0,$C51)+1,OFFSET($D51,1,$C51,ROW($C$205)-ROW($C51)),0)) -> 0 | M51: Serviço | N51: Serviço | O51: - | P51: SINAPI | Q51: 92986 | R51: CABO DE COBRE FLEXÍVEL ISOLADO, 35 MM², ANTI-CHAMA 0,6/1,0 KV, PARA DISTRIBUIÇÃO - FORNECIMENTO E INSTALAÇÃO. AF_12/2015 | S51: M | T51: 107.45 | W51: 0 | X51: Referência: AGETOP - 70512
A52: S | B52: 3 | C52: S | D52: 0 | E52: 1 | F52: 4 | G52: 1 | H52: 0 | I52: 0 | J52: 0 | K52: 0 | M52: Serviço | N52: Serviço | O52: - | P52: SINAPI | Q52: 92984 | R52: CABO DE COBRE FLEXÍVEL ISOLADO, 25 MM², ANTI-CHAMA 0,6/1,0 KV, PARA DISTRIBUIÇÃO - FORNECIMENTO E INSTALAÇÃO. AF_12/2015 | S52: M | T52: 91.85 | W52: 0 | X52: Referência: AGETOP - 70511
A53: S | B53: 3 | C53: S | D53: 0 | E53: 1 | F53: 4 | G53: 1 | H53: 0 | I53: 0 | J53: 0 | K53: 0 | M53: Serviço | N53: Serviço | O53: - | P53: AGETOP | Q53: 70541 | R53: CABO DE COBRE NU No. 16 MM2 (6,94 M/KG) | S53: M | T53: 20 | W53: 0
A54: S | B54: 3 | C54: S | D54: 0 | E54: 1 | F54: 4 | G54: 1 | H54: 0 | I54: 0 | J54: 0 | K54: 0 | M54: Serviço | N54: Serviço | O54: - | P54: SINAPI | Q54: 91834 | R54: ELETRODUTO FLEXÍVEL CORRUGADO, PVC, DN 25 MM (3/4"), PARA CIRCUITOS TERMINAIS, INSTALADO EM FORRO - FORNECIMENTO E INSTALAÇÃO. AF_12/2015 | S54: M | T54: 712 | W54: 0 | X54: Referência: AGETOP - 71194
A55: S | B55: 3 | C55: S | D55: 0 | E55: 1 | F55: 4 | G55: 1 | H55: 0 | I55: 0 | J55: 0 | K55: 0 | M55: Serviço | N55: Serviço | O55: - | P55: SINAPI | Q55: 91836 | R55: ELETRODUTO FLEXÍVEL CORRUGADO, PVC, DN 32 MM (1"), PARA CIRCUITOS TERMINAIS, INSTALADO EM FORRO - FORNECIMENTO E INSTALAÇÃO. AF_12/2015 | S55: M | T55: 82 | W55: 0 | X55: Referência: AGETOP - 71195
A56: S | B56: 3 | C56: S | D56: 0 | E56: 1 | F56: 4 | G56: 1 | H56: 0 | I56: 0 | J56: 0 | K56: 0 | M56: Serviço | N56: Serviço | O56: - | P56: AGETOP | Q56: 71196 | R56: ELETRODUTO PVC FLEXÍVEL - MANGUEIRA CORRUGADA REFORÇADA - DIAM. 40MM | S56: M | T56: 56 | W56: 0
A57: S | B57: 3 | C57: S | D57: 0 | E57: 1 | F57: 4 | G57: 1 | H57: 0 | I57: 0 | J57: 0 | K57: 0 | M57: Serviço | N57: Serviço | O57: - | P57: AGETOP | Q57: 71197 | R57: ELETRODUTO PVC FLEXÍVEL - MANGUEIRA CORRUGADA REFORÇADA - DIAM. 50MM | S57: M | T57: 35 | W57: 0
A58: S | B58: 3 | C58: S | D58: 0 | E58: 1 | F58: 4 | G58: 1 | H58: 0 | I58: 0 | J58: 0 | K58: 0 | M58: Serviço | N58: Serviço | O58: - | P58: SINAPI | Q58: 91867 | R58: ELETRODUTO RÍGIDO ROSCÁVEL, PVC, DN 25 MM (3/4"), PARA CIRCUITOS TERMINAIS, INSTALADO EM LAJE - FORNECIMENTO E INSTALAÇÃO. AF_12/2015 | S58: M | T58: 107 | W58: 0 | X58: Referência: AGETOP - 71201
A59: S | B59: 3 | C59: S | D59: 0 | E59: 1 | F59: 4 | G59: 1 | H59: 0 | I59: 0 | J59: 0 | K59: 0 | M59: Serviço | N59: Serviço | O59: - | P59: SINAPI | Q59: 91868 | R59: ELETRODUTO RÍGIDO ROSCÁVEL, PVC, DN 32 MM (1"), PARA CIRCUITOS TERMINAIS, INSTALADO EM LAJE - FORNECIMENTO E INSTALAÇÃO. AF_12/2015 | S59: M | T59: 11 | W59: 0 | X59: Referência: AGETOP - 71202
A60: S | B60: 3 | C60: S | D60: 0 | E60: 1 | F60: 4 | G60: 1 | H60: 0 | I60: 0 | J60: 0 | K60: 0 | M60: Serviço | N60: Serviço | O60: - | P60: SINAPI | Q60: 93008 | R60: ELETRODUTO RÍGIDO ROSCÁVEL, PVC, DN 50 MM (1 1/2") - FORNECIMENTO E INSTALAÇÃO. AF_12/2015 | S60: M | T60: 9 | W60: 0
A61: S | B61: 3 | C61: S | D61: 0 | E61: 1 | F61: 4 | G61: 1 | H61: 0 | I61: 0 | J61: 0 | K61: 0 | M61: Serviço | N61: Serviço | O61: - | P61: SINAPI | Q61: 93009 | R61: ELETRODUTO RÍGIDO ROSCÁVEL, PVC, DN 60 MM (2") - FORNECIMENTO E INSTALAÇÃO. AF_12/2015 | S61: M | T61: 6 | W61: 0
A62: S | B62: 3 | C62: S | D62: 0 | E62: 1 | F62: 4 | G62: 1 | H62: 0 | I62: 0 | J62: 0 | K62: 0 | M62: Serviço | N62: Serviço | O62: - | P62: AGETOP | Q62: 70351 | R62: BRACADEIRA METALICA TIPO "U" DIAM. 3/4" | S62: Un | T62: 71 | W62: 0
A63: S | B63: 3 | C63: S | D63: 0 | E63: 1 | F63: 4 | G63: 1 | H63: 0 | I63: 0 | J63: 0 | K63: 0 | M63: Serviço | N63: Serviço | O63: - | P63: AGETOP | Q63: 70352 | R63: BRACADEIRA METALICA TIPO "U" DIAM. 1" | S63: Un | T63: 4 | W63: 0
A64: S | B64: 3 | C64: S | D64: 0 | E64: 1 | F64: 4 | G64: 1 | H64: 0 | I64: 0 | J64: 0 | K64: 0 | M64: Serviço | N64: Serviço | O64: - | P64: AGETOP | Q64: 70354 | R64: BRACADEIRA METALICA TIPO "U" DIAM. 1.1/2" | S64: Un | T64: 3 | W64: 0
A65: S | B65: 3 | C65: S | D65: 0 | E65: 1 | F65: 4 | G65: 1 | H65: 0 | I65: 0 | J65: 0 | K65: 0 | M65: Serviço | N65: Serviço | O65: - | P65: AGETOP | Q65: 70355 | R65: BRACADEIRA METALICA TIPO "U" DIAM. 2" | S65: Un | T65: 2 | W65: 0
A66: S | B66: 3 | C66: S | D66: 0 | E66: 1 | F66: 4 | G66: 1 | H66: 0 | I66: 0 | J66: 0 | K66: 0 | M66: Serviço | N66: Serviço | O66: - | P66: SINAPI | Q66: 91879 | R66: LUVA PARA ELETRODUTO, PVC, ROSCÁVEL, DN 25 MM (3/4"), PARA CIRCUITOS TERMINAIS, INSTALADA EM LAJE - FORNECIMENTO E INSTALAÇÃO. AF_12/2015 | S66: UN | T66: 71 | W66: 0 | X66: Referência: AGETOP - 71741
A67: S | B67: 3 | C67: S | D67: 0 | E67: 1 | F67: 4 | G67: 1 | H67: 0 | I67: 0 | J67: 0 | K67: 0 | M67: Serviço | N67: Serviço | O67: - | P67: SINAPI | Q67: 91880 | R67: LUVA PARA ELETRODUTO, PVC, ROSCÁVEL, DN 32 MM (1"), PARA CIRCUITOS TERMINAIS, INSTALADA EM LAJE - FORNECIMENTO E INSTALAÇÃO. AF_12/2015 | S67: UN | T67: 4 | W67: 0 | X67: Referência: AGETOP - 71742
A68: S | B68: 3 | C68: S | D68: 0 | E68: 1 | F68: 4 | G68: 1 | H68: 0 | I68: 0 | J68: 0 | K68: 0 | M68: Serviço | N68: Serviço | O68: - | P68: SINAPI | Q68: 93013 | R68: LUVA PARA ELETRODUTO, PVC, ROSCÁVEL, DN 50 MM (1 1/2") - FORNECIMENTO E INSTALAÇÃO. AF_12/2015 | S68: UN | T68: 3 | W68: 0 | X68: Referência: AGETOP - 71744
A69: S | B69: 3 | C69: S | D69: 0 | E69: 1 | F69: 4 | G69: 1 | H69: 0 | I69: 0 | J69: 0 | K69: 0 | M69: Serviço | N69: Serviço | O69: - | P69: SINAPI | Q69: 93014 | R69: LUVA PARA ELETRODUTO, PVC, ROSCÁVEL, DN 60 MM (2") - FORNECIMENTO E INSTALAÇÃO. AF_12/2015 | S69: UN | T69: 2 | W69: 0 | X69: Referência: AGETOP - 71745
A70: S | B70: 3 | C70: S | D70: 0 | E70: 1 | F70: 4 | G70: 1 | H70: 0 | I70: 0 | J70: 0 | K70: 0 | M70: Serviço | N70: Serviço | O70: - | P70: SINAPI | Q70: 91939 | R70: CAIXA RETANGULAR 4" X 2" ALTA (2,00 M DO PISO), PVC, INSTALADA EM PAREDE - FORNECIMENTO E INSTALAÇÃO. AF_12/2015 | S70: UN | T70: 91 | W70: 0
A71: S | B71: 3 | C71: S | D71: 0 | E71: 1 | F71: 4 | G71: 1 | H71: 0 | I71: 0 | J71: 0 | K71: 0 | M71: Serviço | N71: Serviço | O71: - | P71: SINAPI | Q71: 91937 | R71: CAIXA OCTOGONAL 3" X 3", PVC, INSTALADA EM LAJE - FORNECIMENTO E INSTALAÇÃO. AF_12/2015 | S71: UN | T71: 12 | W71: 0
A72: S | B72: 3 | C72: S | D72: 0 | E72: 1 | F72: 4 | G72: 1 | H72: 0 | I72: 0 | J72: 0 | K72: 0 | M72: Serviço | N72: Serviço | O72: - | P72: SINAPI | Q72: 95779 | R72: CONDULETE DE ALUMÍNIO, TIPO E, PARA ELETRODUTO DE AÇO GALVANIZADO DN 20 MM (3/4''), APARENTE - FORNECIMENTO E INSTALAÇÃO. AF_11/2016_P | S72: UN | T72: 26 | W72: 0
A73: S | B73: 3 | C73: S | D73: 0 | E73: 1 | F73: 4 | G73: 1 | H73: 0 | I73: 0 | J73: 0 | K73: 0 | M73: Serviço | N73: Serviço | O73: - | P73: SINAPI | Q73: 95777 | R73: CONDULETE DE ALUMÍNIO, TIPO B, PARA ELETRODUTO DE AÇO GALVANIZADO DN 20 MM (3/4''), APARENTE - FORNECIMENTO E INSTALAÇÃO. AF_11/2016_P | S73: UN | T73: 26 | W73: 0
A74: S | B74: 3 | C74: S | D74: 0 | E74: 1 | F74: 4 | G74: 1 | H74: 0 | I74: 0 | J74: 0 | K74: 0 | M74: Serviço | N74: Serviço | O74: - | P74: SINAPI | Q74: 95778 | R74: CONDULETE DE ALUMÍNIO, TIPO C, PARA ELETRODUTO DE AÇO GALVANIZADO DN 20 MM (3/4''), APARENTE - FORNECIMENTO E INSTALAÇÃO. AF_11/2016_P | S74: UN | T74: 8 | W74: 0
A75: S | B75: 3 | C75: S | D75: 0 | E75: 1 | F75: 4 | G75: 1 | H75: 0 | I75: 0 | J75: 0 | K75: 0 | M75: Serviço | N75: Serviço | O75: - | P75: SINAPI | Q75: 95795 | R75: CONDULETE DE ALUMÍNIO, TIPO T, PARA ELETRODUTO DE AÇO GALVANIZADO DN 20 MM (3/4''), APARENTE - FORNECIMENTO E INSTALAÇÃO. AF_11/2016_P | S75: UN | T75: 10 | W75: 0
A76: S | B76: 3 | C76: S | D76: 0 | E76: 1 | F76: 4 | G76: 1 | H76: 0 | I76: 0 | J76: 0 | K76: 0 | M76: Serviço | N76: Serviço | O76: - | P76: SINAPI | Q76: 95787 | R76: CONDULETE DE ALUMÍNIO, TIPO LR, PARA ELETRODUTO DE AÇO GALVANIZADO DN 20 MM (3/4''), APARENTE - FORNECIMENTO E INSTALAÇÃO. AF_11/2016_P | S76: UN | T76: 15 | W76: 0
A77: S | B77: 3 | C77: S | D77: 0 | E77: 1 | F77: 4 | G77: 1 | H77: 0 | I77: 0 | J77: 0 | K77: 0 | M77: Serviço | N77: Serviço | O77: - | P77: SINAPI | Q77: 95801 | R77: CONDULETE DE ALUMÍNIO, TIPO X, PARA ELETRODUTO DE AÇO GALVANIZADO DN 20 MM (3/4''), APARENTE - FORNECIMENTO E INSTALAÇÃO. AF_11/2016_P | S77: UN | T77: 15 | W77: 0 | X77: Referência: AGETOP - 70929
A78: S | B78: 3 | C78: S | D78: 0 | E78: 1 | F78: 4 | G78: 1 | H78: 0 | I78: 0 | J78: 0 | K78: 0 | M78: Serviço | N78: Serviço | O78: - | P78: AGETOP | Q78: 72395 | R78: TAMPA CEGA PARA CONDULETE METÁLICO | S78: Un | T78: 130 | W78: 0
A79: S | B79: 3 | C79: S | D79: 0 | E79: 1 | F79: 4 | G79: 1 | H79: 0 | I79: 0 | J79: 0 | K79: 0 | M79: Serviço | N79: Serviço | O79: - | P79: SINAPI | Q79: 91993 | R79: TOMADA ALTA DE EMBUTIR (1 MÓDULO), 2P+T 20 A, INCLUINDO SUPORTE E PLACA - FORNECIMENTO E INSTALAÇÃO. AF_12/2015 | S79: UN | T79: 11 | W79: 0 | X79: Referência: AGETOP - 72585
A80: S | B80: 3 | C80: S | D80: 0 | E80: 1 | F80: 4 | G80: 1 | H80: 0 | I80: 0 | J80: 0 | K80: 0 | M80: Serviço | N80: Serviço | O80: - | P80: SINAPI | Q80: 91992 | R80: TOMADA ALTA DE EMBUTIR (1 MÓDULO), 2P+T 10 A, INCLUINDO SUPORTE E PLACA - FORNECIMENTO E INSTALAÇÃO. AF_12/2015 | S80: UN | T80: 26 | W80: 0
A81: S | B81: 3 | C81: S | D81: 0 | E81: 1 | F81: 4 | G81: 1 | H81: 0 | I81: 0 | J81: 0 | K81: 0 | M81: Serviço | N81: Serviço | O81: - | P81: SINAPI | Q81: 91996 | R81: TOMADA MÉDIA DE EMBUTIR (1 MÓDULO), 2P+T 10 A, INCLUINDO SUPORTE E PLACA - FORNECIMENTO E INSTALAÇÃO. AF_12/2015 | S81: UN | T81: 3 | W81: 0 | X81: Referência: AGETOP - 72578
A82: S | B82: 3 | C82: S | D82: 0 | E82: 1 | F82: 4 | G82: 1 | H82: 0 | I82: 0 | J82: 0 | K82: 0 | M82: Serviço | N82: Serviço | O82: - | P82: SINAPI | Q82: 92000 | R82: TOMADA BAIXA DE EMBUTIR (1 MÓDULO), 2P+T 10 A, INCLUINDO SUPORTE E PLACA - FORNECIMENTO E INSTALAÇÃO. AF_12/2015 | S82: UN | T82: 42 | W82: 0 | X82: Referência: AGETOP - 72578
A83: S | B83: 3 | C83: S | D83: 0 | E83: 1 | F83: 4 | G83: 1 | H83: 0 | I83: 0 | J83: =IF(OR($C83="S",$C83=0),0,MATCH(0,OFFSET($D83,1,$C83,ROW($C$205)-ROW($C83)),0)) -> 0 | K83: =IF(OR($C83="S",$C83=0),0,MATCH(OFFSET($D83,0,$C83)+1,OFFSET($D83,1,$C83,ROW($C$205)-ROW($C83)),0)) -> 0 | M83: Serviço | N83: Serviço | O83: - | P83: SINAPI | Q83: 91961 | R83: INTERRUPTOR PARALELO (2 MÓDULOS), 10A/250V, INCLUINDO SUPORTE E PLACA - FORNECIMENTO E INSTALAÇÃO. AF_12/2015 | S83: UN | T83: 3 | W83: 0
A84: S | B84: 3 | C84: S | D84: 0 | E84: 1 | F84: 4 | G84: 1 | H84: 0 | I84: 0 | J84: 0 | K84: 0 | M84: Serviço | N84: Serviço | O84: - | P84: SINAPI | Q84: 91953 | R84: INTERRUPTOR SIMPLES (1 MÓDULO), 10A/250V, INCLUINDO SUPORTE E PLACA - FORNECIMENTO E INSTALAÇÃO. AF_12/2015 | S84: UN | T84: 7 | W84: 0 | X84: Referência: AGETOP - 71440
A85: S | B85: 3 | C85: S | D85: 0 | E85: 1 | F85: 4 | G85: 1 | H85: 0 | I85: 0 | J85: 0 | K85: 0 | M85: Serviço | N85: Serviço | O85: - | P85: SINAPI | Q85: 97585 | R85: LUMINÁRIA TIPO CALHA, DE SOBREPOR, COM 2 LÂMPADAS TUBULARES DE 18 W - FORNECIMENTO E INSTALAÇÃO. AF_11/2017 | S85: UN | T85: 120 | W85: 0
A86: S | B86: 3 | C86: S | D86: 0 | E86: 1 | F86: 4 | G86: 1 | H86: 0 | I86: 0 | J86: 0 | K86: 0 | M86: Serviço | N86: Serviço | O86: - | P86: SINAPI | Q86: 97601 | R86: REFLETOR EM ALUMÍNIO COM SUPORTE E ALÇA, LÂMPADA 250 W - FORNECIMENTO E INSTALAÇÃO. AF_11/2017 | S86: UN | T86: 9 | W86: 0
A87: S | B87: 3 | C87: S | D87: 0 | E87: 1 | F87: 4 | G87: 1 | H87: 0 | I87: 0 | J87: 0 | K87: 0 | M87: Serviço | N87: Serviço | O87: - | P87: SINAPI | Q87: 73831/5 | R87: LAMPADA MISTA DE 250W - FORNECIMENTO E INSTALACAO | S87: UN | T87: 9 | W87: 0
A88: S | B88: 3 | C88: S | D88: 0 | E88: 1 | F88: 4 | G88: 1 | H88: 0 | I88: 0 | J88: 0 | K88: 0 | M88: Serviço | N88: Serviço | O88: - | P88: AGETOP | Q88: 71627 | R88: LUMINÁRIA PARA JARDIM COM POSTE 2,50 M COM 02 GLOBOS - INCLUSO BASE DE CONCRETO PADRÃO AGETOP E FIXAÇÃO | S88: un | T88: 7 | W88: 0
A89: S | B89: 3 | C89: S | D89: 0 | E89: 1 | F89: 4 | G89: 1 | H89: 0 | I89: 0 | J89: 0 | K89: 0 | M89: Serviço | N89: Serviço | O89: - | P89: SINAPI | Q89: 73831/5 | R89: LAMPADA MISTA DE 250W - FORNECIMENTO E INSTALACAO | S89: UN | T89: 7 | W89: 0
A90: S | B90: 3 | C90: S | D90: 0 | E90: 1 | F90: 4 | G90: 1 | H90: 0 | I90: 0 | J90: 0 | K90: 0 | M90: Serviço | N90: Serviço | O90: - | P90: SINAPI | Q90: 97889 | R90: CAIXA ENTERRADA ELÉTRICA RETANGULAR, EM ALVENARIA COM TIJOLOS CERÂMICOS MACIÇOS, FUNDO COM BRITA, DIMENSÕES INTERNAS: 0,8X0,8X0,6 M. AF_05/2018 | S90: UN | T90: 4 | W90: 0
A91: S | B91: 3 | C91: S | D91: 0 | E91: 1 | F91: 4 | G91: 1 | H91: 0 | I91: 0 | J91: 0 | K91: 0 | M91: Serviço | N91: Serviço | O91: - | P91: SINAPI | Q91: 6171 | R91: TAMPA DE CONCRETO ARMADO 60X60X5CM PARA CAIXA | S91: UN | T91: 4 | W91: 0
A92: S | B92: 3 | C92: S | D92: 0 | E92: 1 | F92: 4 | G92: 1 | H92: 0 | I92: 0 | J92: 0 | K92: 0 | M92: Serviço | N92: Serviço | O92: - | P92: AGETOP | Q92: 71861 | R92: PARAFUSO P/BUCHA S-6 | S92: Un | T92: 320 | W92: 0
A93: S | B93: 3 | C93: S | D93: 0 | E93: 1 | F93: 4 | G93: 1 | H93: 0 | I93: 0 | J93: 0 | K93: 0 | M93: Serviço | N93: Serviço | O93: - | P93: AGETOP | Q93: 70391 | R93: BUCHA DE NYLON S-6 | S93: Un | T93: 320 | W93: 0
A94: S | B94: 3 | C94: S | D94: 0 | E94: 1 | F94: 4 | G94: 1 | H94: 0 | I94: 0 | J94: 0 | K94: 0 | M94: Serviço | N94: Serviço | O94: - | P94: AGETOP | Q94: 20162 | R94: DEMOLIÇÃO DAS INSTALAÇÕES ELÉTRICAS E AFINS C/ TRANSP. ATÉ CB. E CARGA | S94: H | T94: 40 | W94: 0
A95: S | B95: 3 | C95: S | D95: 0 | E95: 1 | F95: 4 | G95: 1 | H95: 0 | I95: 0 | J95: 0 | K95: 0 | M95: Serviço | N95: Serviço | O95: - | P95: AGETOP | Q95: 71380 | R95: HASTE REV.COBRE(COPPERWELD) 3/4" X 2,40 M C/CONECTOR | S95: Un | T95: 3 | W95: 0
A96: S | B96: 3 | C96: S | D96: 0 | E96: 1 | F96: 4 | G96: 1 | H96: 0 | I96: 0 | J96: 0 | K96: 0 | M96: Serviço | N96: Serviço | O96: - | P96: AGETOP | Q96: 71824 | R96: PADRÃO TRIFASICO 35 MM H=7 METROS | S96: Un | T96: 1 | W96: 0
A97: S | B97: 3 | C97: S | D97: 0 | E97: 1 | F97: 4 | G97: 1 | H97: 0 | I97: 0 | J97: 0 | K97: 0 | M97: Serviço | N97: Serviço | O97: - | P97: AGETOP | Q97: 70255 | R97: ATERRAMENTO - SOLDA EXOTÉRMICA - CARTUCHO 90 G | S97: un | T97: 3 | W97: 0
A98: S | B98: 3 | C98: S | D98: 0 | E98: 1 | F98: 4 | G98: 1 | H98: 0 | I98: 0 | J98: 0 | K98: 0 | M98: Serviço | N98: Serviço | O98: - | P98: AGETOP | Q98: 71331 | R98: FITA ISOLANTE, ROLO DE 20,00 M | S98: Un | T98: 5 | W98: 0
A99: S | B99: 3 | C99: S | D99: 0 | E99: 1 | F99: 4 | G99: 1 | H99: 0 | I99: 0 | J99: 0 | K99: 0 | M99: Serviço | N99: Serviço | O99: - | P99: AGETOP | Q99: 71321 | R99: FITA DE AUTO FUSAO, ROLO E 10,00 MM | S99: Un | T99: 5 | W99: 0
A100: 3 | B100: 3 | C100: 3 | D100: 12 | E100: 1 | F100: 4 | G100: 2 | H100: 0 | I100: 0 | J100: 12 | M100: Nível 3 | N100: Nível 3 | O100: - | P100: SINAPI | R100: IMPLANTAÇÃO | S100: - | W100: 0
A101: S | B101: 3 | C101: S | D101: 0 | E101: 1 | F101: 4 | G101: 2 | H101: 0 | I101: 0 | J101: 0 | K101: 0 | M101: Serviço | N101: Serviço | O101: - | P101: SINAPI | Q101: 74131/4 | R101: QUADRO DE DISTRIBUICAO DE ENERGIA DE EMBUTIR, EM CHAPA METALICA, PARA 18 DISJUNTORES TERMOMAGNETICOS MONOPOLARES, COM BARRAMENTO TRIFASICO E NEUTRO, FORNECIMENTO E INSTALACAO | S101: UN | T101: 1 | W101: 0
A102: S | B102: 3 | C102: S | D102: 0 | E102: 1 | F102: 4 | G102: 2 | H102: 0 | I102: 0 | J102: 0 | K102: 0 | M102: Serviço | N102: Serviço | O102: - | P102: SINAPI | Q102: 93670 | R102: DISJUNTOR TRIPOLAR TIPO DIN, CORRENTE NOMINAL DE 25A - FORNECIMENTO E INSTALAÇÃO. AF_04/2016 | S102: UN | T102: 2 | W102: 0 | X102: Referência: AGETOP - 71173
A103: S | B103: 3 | C103: S | D103: 0 | E103: 1 | F103: 4 | G103: 2 | H103: 0 | I103: 0 | J103: 0 | K103: 0 | M103: Serviço | N103: Serviço | O103: - | P103: SINAPI | Q103: 91930 | R103: CABO DE COBRE FLEXÍVEL ISOLADO, 6 MM², ANTI-CHAMA 450/750 V, PARA CIRCUITOS TERMINAIS - FORNECIMENTO E INSTALAÇÃO. AF_12/2015 | S103: M | T103: 456.83 | W103: 0 | X103: Referência: AGETOP - 70565
A104: S | B104: 3 | C104: S | D104: 0 | E104: 1 | F104: 4 | G104: 2 | H104: 0 | I104: 0 | J104: 0 | K104: 0 | M104: Serviço | N104: Serviço | O104: - | P104: SINAPI | Q104: 91864 | R104: ELETRODUTO RÍGIDO ROSCÁVEL, PVC, DN 32 MM (1"), PARA CIRCUITOS TERMINAIS, INSTALADO EM FORRO - FORNECIMENTO E INSTALAÇÃO. AF_12/2015 | S104: M | T104: 91.37 | W104: 0
A105: S | B105: 3 | C105: S | D105: 0 | E105: 1 | F105: 4 | G105: 2 | H105: 0 | I105: 0 | J105: 0 | K105: 0 | M105: Serviço | N105: Serviço | O105: - | P105: SINAPI | Q105: 91876 | R105: LUVA PARA ELETRODUTO, PVC, ROSCÁVEL, DN 32 MM (1"), PARA CIRCUITOS TERMINAIS, INSTALADA EM FORRO - FORNECIMENTO E INSTALAÇÃO. AF_12/2015 | S105: UN | T105: 31 | W105: 0
A106: S | B106: 3 | C106: S | D106: 0 | E106: 1 | F106: 4 | G106: 2 | H106: 0 | I106: 0 | J106: 0 | K106: 0 | M106: Serviço | N106: Serviço | O106: - | P106: AGETOP | Q106: 70352 | R106: BRACADEIRA METALICA TIPO "U" DIAM. 1" | S106: Un | T106: 31 | W106: 0
A107: S | B107: 3 | C107: S | D107: 0 | E107: 1 | F107: 4 | G107: 2 | H107: 0 | I107: 0 | J107: 0 | K107: 0 | M107: Serviço | N107: Serviço | O107: - | P107: SINAPI | Q107: 97889 | R107: CAIXA ENTERRADA ELÉTRICA RETANGULAR, EM ALVENARIA COM TIJOLOS CERÂMICOS MACIÇOS, FUNDO COM BRITA, DIMENSÕES INTERNAS: 0,8X0,8X0,6 M. AF_05/2018 | S107: UN | T107: 2 | W107: 0
A108: S | B108: 3 | C108: S | D108: 0 | E108: 1 | F108: 4 | G108: 2 | H108: 0 | I108: 0 | J108: 0 | K108: 0 | M108: Serviço | N108: Serviço | O108: - | P108: SINAPI | Q108: 6171 | R108: TAMPA DE CONCRETO ARMADO 60X60X5CM PARA CAIXA | S108: UN | T108: 2 | W108: 0
A109: S | B109: 3 | C109: S | D109: 0 | E109: 1 | F109: 4 | G109: 2 | H109: 0 | I109: 0 | J109: 0 | K109: 0 | M109: Serviço | N109: Serviço | O109: - | P109: AGETOP | Q109: 71861 | R109: PARAFUSO P/BUCHA S-6 | S109: Un | T109: 124 | W109: 0
A110: S | B110: 3 | C110: S | D110: 0 | E110: 1 | F110: 4 | G110: 2 | H110: 0 | I110: 0 | J110: 0 | K110: 0 | M110: Serviço | N110: Serviço | O110: - | P110: AGETOP | Q110: 70391 | R110: BUCHA DE NYLON S-6 | S110: Un | T110: 124 | W110: 0
A111: S | B111: 3 | C111: S | D111: 0 | E111: 1 | F111: 4 | G111: 2 | H111: 0 | I111: 0 | J111: 0 | K111: 0 | M111: Serviço | N111: Serviço | O111: - | P111: AGETOP | Q111: 71321 | R111: FITA DE AUTO FUSAO, ROLO E 10,00 MM | S111: Un | T111: 2 | W111: 0
A112: 2 | B112: 2 | C112: 2 | D112: 12 | E112: 1 | F112: 5 | G112: 0 | H112: 0 | I112: 0 | J112: 46 | K112: 12 | M112: Nível 2 | N112: Nível 2 | O112: - | R112: INSTALAÇÕES ESPECIAIS | S112: - | W112: 0
A113: 3 | B113: 3 | C113: 3 | D113: 11 | E113: 1 | F113: 5 | G113: 1 | H113: 0 | I113: 0 | J113: 11 | K113: 18 | M113: Nível 3 | N113: Nível 3 | O113: - | P113: SINAPI | R113: INSTALAÇÕES DE INCENDIO | S113: - | W113: 0
A114: S | B114: 3 | C114: S | D114: 0 | E114: 1 | F114: 5 | G114: 1 | H114: 0 | I114: 0 | J114: 0 | K114: 0 | M114: Serviço | N114: Serviço | O114: - | P114: AGETOP | Q114: 85003 | R114: EXTINTOR PO QUIMICO SECO (6 KG) - CAPACIDADE EXTINTORA 20 BC | S114: Un | T114: 2 | W114: 0
A115: S | B115: 3 | C115: S | D115: 0 | E115: 1 | F115: 5 | G115: 1 | H115: 0 | I115: 0 | J115: =IF(OR($C115="S",$C115=0),0,MATCH(0,OFFSET($D115,1,$C115,ROW($C$205)-ROW($C115)),0)) -> 0 | K115: =IF(OR($C115="S",$C115=0),0,MATCH(OFFSET($D115,0,$C115)+1,OFFSET($D115,1,$C115,ROW($C$205)-ROW($C115)),0)) -> 0 | M115: Serviço | N115: Serviço | O115: - | P115: AGETOP | Q115: 85006 | R115: EXTINTOR MULTI USO EM PO A B C (6 KG) - CAPACIDADE EXTINTORA 3A 20BC | S115: un | T115: 6 | W115: 0
A116: S | B116: 3 | C116: S | D116: 0 | E116: 1 | F116: 5 | G116: 1 | H116: 0 | I116: 0 | J116: 0 | K116: 0 | M116: Serviço | N116: Serviço | O116: - | P116: SINAPI | Q116: 97599 | R116: LUMINÁRIA DE EMERGÊNCIA - FORNECIMENTO E INSTALAÇÃO. AF_11/2017 | S116: UN | T116: 13 | W116: 0
A117: S | B117: 3 | C117: S | D117: 0 | E117: 1 | F117: 5 | G117: 1 | H117: 0 | I117: 0 | J117: 0 | K117: 0 | M117: Serviço | N117: Serviço | O117: - | P117: COMPOSIÇÃO | Q117: COMP 024_SEE | R117: SINALIZADOR FOTOLUMINESCENTE PARA EXTINTOR | S117: UN | T117: 8 | W117: 0
A118: S | B118: 3 | C118: S | D118: 0 | E118: 1 | F118: 5 | G118: 1 | H118: 0 | I118: 0 | J118: 0 | K118: 0 | M118: Serviço | N118: Serviço | O118: - | P118: COMPOSIÇÃO | Q118: COMP 025_SEE | R118: SINALIZADOR FOTOLUMINESCENTE DE EMERGÊNCIA | S118: UN | T118: 24 | W118: 0
A119: S | B119: 3 | C119: S | D119: 0 | E119: 1 | F119: 5 | G119: 1 | H119: 0 | I119: 0 | J119: 0 | K119: 0 | M119: Serviço | N119: Serviço | O119: - | P119: COMPOSIÇÃO | Q119: COMP 277_SEE | R119: MARCAÇÃO NO PISO - 1X1 M PARA EXTINTOR | S119: M2 | T119: 8 | W119: 0
A120: S | B120: 3 | C120: S | D120: 0 | E120: 1 | F120: 5 | G120: 1 | H120: 0 | I120: 0 | J120: 0 | K120: 0 | M120: Serviço | N120: Serviço | O120: - | P120: COMPOSIÇÃO | Q120: COMP 235_SEE | R120: PLACA DE SINALIZAÇÃO EM PVC COD 01 - (300X300) PROIBIDO FUMAR | S120: UN | T120: 1 | W120: 0
A121: S | B121: 3 | C121: S | D121: 0 | E121: 1 | F121: 5 | G121: 1 | H121: 0 | I121: 0 | J121: 0 | K121: 0 | M121: Serviço | N121: Serviço | O121: - | P121: COMPOSIÇÃO | Q121: COMP 236_SEE | R121: PLACA DE SINALIZAÇÃO EM PVC COD 06 - (300X300) PERIGO INFLAMÁVEL | S121: UN | T121: 1 | W121: 0
A122: S | B122: 3 | C122: S | D122: 0 | E122: 1 | F122: 5 | G122: 1 | H122: 0 | I122: 0 | J122: 0 | K122: 0 | M122: Serviço | N122: Serviço | O122: - | P122: COMPOSIÇÃO | Q122: COMP 411_SEE | R122: PLACA DE SINALIZAÇÃO EM PVC COD 13 - (316X158) SAÍDA DE EMERGÊNCIA | S122: UN | T122: 7 | W122: 0
A123: S | B123: 3 | C123: S | D123: 0 | E123: 1 | F123: 5 | G123: 1 | H123: 0 | I123: 0 | J123: 0 | K123: 0 | M123: Serviço | N123: Serviço | O123: - | P123: COMPOSIÇÃO | Q123: COMP 412_SEE | R123: PLACA DE SINALIZAÇÃO EM PVC COD 17 - (316X158) MENSAGEM "SAÍDA" | S123: UN | T123: 2 | W123: 0
A124: 2 | B124: 2 | C124: 2 | D124: 2 | E124: 1 | F124: 6 | G124: 0 | H124: 0 | I124: 0 | J124: 34 | K124: 2 | M124: Nível 2 | N124: Nível 2 | O124: - | R124: FORROS | S124: - | W124: 0
A125: S | B125: 2 | C125: S | D125: 0 | E125: 1 | F125: 6 | G125: 0 | H125: 0 | I125: 0 | J125: 0 | K125: 0 | M125: Serviço | N125: Serviço | O125: - | P125: AGETOP | Q125: 210461 | R125: FORRO DE PVC SEM ESTRUTURA DE METALON (COM REPINTURA DA ESTRUTURA COM TINTA ALQUÍDICA D.F.) | S125: m2 | T125: 545 | W125: 0
A126: 2 | B126: 2 | C126: 2 | D126: 8 | E126: 1 | F126: 7 | G126: 0 | H126: 0 | I126: 0 | J126: 32 | K126: 8 | M126: Nível 2 | N126: Nível 2 | O126: - | R126: REVESTIMENTO DE PISO | S126: - | W126: 0
A127: 3 | B127: 3 | C127: 3 | D127: 4 | E127: 1 | F127: 7 | G127: 1 | H127: 0 | I127: 0 | J127: 7 | K127: 4 | M127: Nível 3 | N127: Nível 3 | O127: - | P127: SINAPI | R127: REFORMA DA QUADRA | S127: - | W127: 0
A128: S | B128: 3 | C128: S | D128: 0 | E128: 1 | F128: 7 | G128: 1 | H128: 0 | I128: 0 | J128: 0 | K128: 0 | M128: Serviço | N128: Serviço | O128: - | P128: AGETOP | Q128: 220101 | R128: LASTRO DE CONCRETO REGULARIZADO IMPERMEABILIZADO 1:3:6 ESP=5CM (BASE) | S128: m2 | T128: 550 | W128: 0
A129: S | B129: 3 | C129: S | D129: 0 | E129: 1 | F129: 7 | G129: 1 | H129: 0 | I129: 0 | J129: 0 | K129: 0 | M129: Serviço | N129: Serviço | O129: - | P129: SINAPI | Q129: 84191 | R129: PISO EM GRANILITE, MARMORITE OU GRANITINA ESPESSURA 8 MM, INCLUSO JUNTAS DE DILATACAO PLASTICAS | S129: M2 | T129: 550 | W129: 0 | X129: Referência: AGETOP - 221101
A130: S | B130: 3 | C130: S | D130: 0 | E130: 1 | F130: 7 | G130: 1 | H130: 0 | I130: 0 | J130: 0 | K130: 0 | M130: Serviço | N130: Serviço | O130: - | P130: AGETOP | Q130: 221104 | R130: RASPAGEM E APLICAÇÃO RESINA ACRÍLICA DUAS DEMÃOS | S130: m2 | T130: 550 | W130: 0
A131: 3 | B131: 3 | C131: 3 | D131: 3 | E131: 1 | F131: 7 | G131: 2 | H131: 0 | I131: 0 | J131: 3 | M131: Nível 3 | N131: Nível 3 | O131: - | P131: SINAPI | R131: ACESSIBILIDADE | S131: - | W131: 0
A132: S | B132: 3 | C132: S | D132: 0 | E132: 1 | F132: 7 | G132: 2 | H132: 0 | I132: 0 | J132: 0 | K132: 0 | M132: Serviço | N132: Serviço | O132: - | P132: AGETOP | Q132: 221120 | R132: PISO DE BORRACHA COLORIDO MODELO TÁTIL ( ALERTA OU DIRECIONAL) INCLUSO CONTRAPISO (1CI:3ARML) C/ E=2CM E NATA DE CIMENTO | S132: m2 | T132: 10 | W132: 0
A133: S | B133: 3 | C133: S | D133: 0 | E133: 1 | F133: 7 | G133: 2 | H133: 0 | I133: 0 | J133: 0 | K133: 0 | M133: Serviço | N133: Serviço | O133: - | P133: AGETOP | Q133: 221126 | R133: PISO DE LADRILHO HIDRÁULICO COLORIDO MODELO TÁTIL ( ALERTA OU DIRECIONAL) SEM LASTRO | S133: m2 | T133: 105 | W133: 0
A134: 2 | B134: 2 | C134: 2 | D134: 3 | E134: 1 | F134: 8 | G134: 0 | H134: 0 | I134: 0 | J134: 24 | K134: 3 | M134: Nível 2 | N134: Nível 2 | O134: - | R134: FERRAGENS | S134: - | W134: 0
A135: S | B135: 2 | C135: S | D135: 0 | E135: 1 | F135: 8 | G135: 0 | H135: 0 | I135: 0 | J135: 0 | K135: 0 | M135: Serviço | N135: Serviço | O135: - | P135: AGETOP | Q135: 230174 | R135: BARRA DE APOIO EM AÇO INOX - 40 CM | S135: un | T135: 3 | W135: 0
A136: S | B136: 2 | C136: S | D136: 0 | E136: 1 | F136: 8 | G136: 0 | H136: 0 | I136: 0 | J136: 0 | K136: 0 | M136: Serviço | N136: Serviço | O136: - | P136: AGETOP | Q136: 230176 | R136: BARRA DE APOIO EM AÇO INOX - 80 CM | S136: un | T136: 3 | W136: 0
A137: 2 | B137: 2 | C137: 2 | D137: 3 | E137: 1 | F137: 9 | G137: 0 | H137: 0 | I137: 0 | J137: 21 | K137: 3 | M137: Nível 2 | N137: Nível 2 | O137: - | R137: ADMINISTRAÇÃO | S137: - | W137: 0
A138: S | B138: 2 | C138: S | D138: 0 | E138: 1 | F138: 9 | G138: 0 | H138: 0 | I138: 0 | J138: 0 | K138: 0 | M138: Serviço | N138: Serviço | O138: - | P138: SINAPI | Q138: 90778 | R138: ENGENHEIRO CIVIL DE OBRA PLENO COM ENCARGOS COMPLEMENTARES | S138: H | T138: 88 | W138: 0 | X138: Referência: AGETOP - 250101
A139: S | B139: 2 | C139: S | D139: 0 | E139: 1 | F139: 9 | G139: 0 | H139: 0 | I139: 0 | J139: 0 | K139: 0 | M139: Serviço | N139: Serviço | O139: - | P139: SINAPI | Q139: 90776 | R139: ENCARREGADO GERAL COM ENCARGOS COMPLEMENTARES | S139: H | T139: 440 | W139: 0 | X139: Referência: AGETOP - 250103
A140: 2 | B140: 2 | C140: 2 | D140: 12 | E140: 1 | F140: 10 | G140: 0 | H140: 0 | I140: 0 | J140: 18 | K140: 12 | M140: Nível 2 | N140: Nível 2 | O140: - | R140: PINTURA | S140: - | W140: 0
A141: 3 | B141: 3 | C141: 3 | D141: 6 | E141: 1 | F141: 10 | G141: 1 | H141: 0 | I141: 0 | J141: 11 | K141: 6 | M141: Nível 3 | N141: Nível 3 | O141: - | P141: SINAPI | R141: PINTURA GERAL | S141: - | W141: 0
A142: S | B142: 3 | C142: S | D142: 0 | E142: 1 | F142: 10 | G142: 1 | H142: 0 | I142: 0 | J142: 0 | K142: 0 | M142: Serviço | N142: Serviço | O142: - | P142: SINAPI | Q142: 88497 | R142: APLICAÇÃO E LIXAMENTO DE MASSA LÁTEX EM PAREDES, DUAS DEMÃOS. AF_06/2014 | S142: M2 | T142: 400 | W142: 0 | X142: Referência: AGETOP - 261300
A143: S | B143: 3 | C143: S | D143: 0 | E143: 1 | F143: 10 | G143: 1 | H143: 0 | I143: 0 | J143: 0 | K143: 0 | M143: Serviço | N143: Serviço | O143: - | P143: AGETOP | Q143: 260104 | R143: REMOCAO DE PINTURA ANTIGA A LATEX | S143: m2 | T143: 400 | W143: 0
A144: S | B144: 3 | C144: S | D144: 0 | E144: 1 | F144: 10 | G144: 1 | H144: 0 | I144: 0 | J144: 0 | K144: 0 | M144: Serviço | N144: Serviço | O144: - | P144: SINAPI | Q144: 88489 | R144: APLICAÇÃO MANUAL DE PINTURA COM TINTA LÁTEX ACRÍLICA EM PAREDES, DUAS DEMÃOS. AF_06/2014 | S144: M2 | T144: 1720 | W144: 0 | X144: Referência: AGETOP - 261001
A145: S | B145: 3 | C145: S | D145: 0 | E145: 1 | F145: 10 | G145: 1 | H145: 0 | I145: 0 | J145: 0 | K145: 0 | M145: Serviço | N145: Serviço | O145: - | P145: AGETOP | Q145: 261548 | R145: PINTURA ESMALTE 1 DEMÃO EM PAREDE SEM SELADOR | S145: m2 | T145: 440 | W145: 0
A146: S | B146: 3 | C146: S | D146: 0 | E146: 1 | F146: 10 | G146: 1 | H146: 0 | I146: 0 | J146: 0 | K146: 0 | M146: Serviço | N146: Serviço | O146: - | P146: AGETOP | Q146: 261620 | R146: LETREIRO MÉDIO A GRANDE PORTE EM PAREDE FEITO A PINCEL | S146: m2 | T146: 7.2 | W146: 0
A147: 3 | B147: 3 | C147: 3 | D147: 5 | E147: 1 | F147: 10 | G147: 2 | H147: 0 | I147: 0 | J147: =IF(OR($C147="S",$C147=0),0,MATCH(0,OFFSET($D147,1,$C147,ROW($C$205)-ROW($C147)),0)) -> 5 | K147: =IF(OR($C147="S",$C147=0),0,MATCH(OFFSET($D147,0,$C147)+1,OFFSET($D147,1,$C147,ROW($C$205)-ROW($C147)),0)) ->  | M147: Nível 3 | N147: Nível 3 | O147: - | P147: SINAPI | R147: REFORMA DA QUADRA | S147: - | W147: 0
A148: S | B148: 3 | C148: S | D148: 0 | E148: 1 | F148: 10 | G148: 2 | H148: 0 | I148: 0 | J148: 0 | K148: 0 | M148: Serviço | N148: Serviço | O148: - | P148: AGETOP | Q148: 260104 | R148: REMOCAO DE PINTURA ANTIGA A LATEX | S148: m2 | T148: 50 | W148: 0
A149: S | B149: 3 | C149: S | D149: 0 | E149: 1 | F149: 10 | G149: 2 | H149: 0 | I149: 0 | J149: 0 | K149: 0 | M149: Serviço | N149: Serviço | O149: - | P149: SINAPI | Q149: 88497 | R149: APLICAÇÃO E LIXAMENTO DE MASSA LÁTEX EM PAREDES, DUAS DEMÃOS. AF_06/2014 | S149: M2 | T149: 50 | W149: 0 | X149: Referência: AGETOP - 261300
A150: S | B150: 3 | C150: S | D150: 0 | E150: 1 | F150: 10 | G150: 2 | H150: 0 | I150: 0 | J150: 0 | K150: 0 | M150: Serviço | N150: Serviço | O150: - | P150: SINAPI | Q150: 88489 | R150: APLICAÇÃO MANUAL DE PINTURA COM TINTA LÁTEX ACRÍLICA EM PAREDES, DUAS DEMÃOS. AF_06/2014 | S150: M2 | T150: 175 | W150: 0 | X150: Referência: AGETOP - 261001
A151: S | B151: 3 | C151: S | D151: 0 | E151: 1 | F151: 10 | G151: 2 | H151: 0 | I151: 0 | J151: 0 | K151: 0 | M151: Serviço | N151: Serviço | O151: - | P151: SINAPI | Q151: 41595 | R151: PINTURA ACRILICA DE FAIXAS DE DEMARCACAO EM QUADRA POLIESPORTIVA, 5 CM DE LARGURA | S151: M | T151: 320 | W151: 0 | X151: Referência: AGETOP - 261700
A152: 2 | B152: 2 | C152: 2 | D152: 6 | E152: 1 | F152: 11 | G152: 0 | H152: 0 | I152: 0 | J152: 6 | M152: Nível 2 | N152: Nível 2 | O152: - | R152: DIVERSOS | S152: - | W152: 0
A153: S | B153: 2 | C153: S | D153: 0 | E153: 1 | F153: 11 | G153: 0 | H153: 0 | I153: 0 | J153: 0 | K153: 0 | M153: Serviço | N153: Serviço | O153: - | P153: AGETOP | Q153: 271099 | R153: TABELA PARA BASQUETE ESTRUTURA METÁLICA E COMPENSADO (ASSENT./PINTADAS) ARO METÁLICO - 2 UNID. | S153: CJ | T153: 1 | W153: 0
A154: S | B154: 2 | C154: S | D154: 0 | E154: 1 | F154: 11 | G154: 0 | H154: 0 | I154: 0 | J154: 0 | K154: 0 | M154: Serviço | N154: Serviço | O154: - | P154: AGETOP | Q154: 271101 | R154: TRAVES FERRO GALVANIZADO PARA FUTEBOL DE SALÃO PINTADAS - 3,00 x 2,00M - 2 UNID. | S154: CJ | T154: 1 | W154: 0
A155: S | B155: 2 | C155: S | D155: 0 | E155: 1 | F155: 11 | G155: 0 | H155: 0 | I155: 0 | J155: 0 | K155: 0 | M155: Serviço | N155: Serviço | O155: - | P155: AGETOP | Q155: 271103 | R155: CONJUNTO PARA VOLEIBOL EM FERRO GALVANIZADO COM PINTURA (2 SUPORTES) | S155: CJ | T155: 1 | W155: 0
A156: S | B156: 2 | C156: S | D156: 0 | E156: 1 | F156: 11 | G156: 0 | H156: 0 | I156: 0 | J156: 0 | K156: 0 | M156: Serviço | N156: Serviço | O156: - | P156: AGETOP | Q156: 270889 | R156: SUPORTE PADRÃO PARA TABELA BASQUETE EM "U" ENRIJECIDO- 2 UNID. (ASSENTADOS/PINTADOS) | S156: CJ | T156: 1 | W156: 0
A157: S | B157: 2 | C157: S | D157: 0 | E157: 1 | F157: 11 | G157: 0 | H157: 0 | I157: 0 | J157: 0 | K157: 0 | M157: Serviço | N157: Serviço | O157: - | P157: AGETOP | Q157: 270501 | R157: LIMPEZA FINAL DE OBRA - (OBRAS CIVIS) | S157: m2 | T157: 200 | W157: 0
A158: 1 | B158: 1 | C158: 1 | D158: 47 | E158: 2 | F158: 0 | G158: 0 | H158: 0 | I158: 0 | J158: 47 | L158: F | M158: Nível 1 | N158: Nível 1 | O158: 2. | P158: AGETOP | R158: COBERTURA DE QUADRA PEQUENA FNDE | S158: - | W158: 0
A159: 2 | B159: 2 | C159: 2 | D159: 2 | E159: 2 | F159: 1 | G159: 0 | H159: 0 | I159: 0 | J159: 46 | K159: 2 | M159: Nível 2 | N159: Nível 2 | O159: - | P159: AGETOP | R159: SERVIÇOS PRELIMINARES | S159: - | W159: 0
A160: S | B160: 2 | C160: S | D160: 0 | E160: 2 | F160: 1 | G160: 0 | H160: 0 | I160: 0 | J160: 0 | K160: 0 | M160: Serviço | N160: Serviço | O160: - | P160: AGETOP | Q160: 20701 | R160: LOCAÇÃO DA OBRA, EXECUÇÃO DE GABARITO SEM REAPROVEITAMENTO, INCLUSO PINTURA (FACE INTERNA DO RIPÃO 15CM) E PIQUETE COM TESTEMUNHA | S160: m2 | T160: 627 | W160: 0
A161: 2 | B161: 2 | C161: 2 | D161: 4 | E161: 2 | F161: 2 | G161: 0 | H161: 0 | I161: 0 | J161: 44 | K161: 4 | M161: Nível 2 | N161: Nível 2 | O161: - | P161: AGETOP | R161: SERVIÇO EM TERRA | S161: - | W161: 0
A162: S | B162: 2 | C162: S | D162: 0 | E162: 2 | F162: 2 | G162: 0 | H162: 0 | I162: 0 | J162: 0 | K162: 0 | M162: Serviço | N162: Serviço | O162: - | P162: SINAPI | Q162: 96522 | R162: ESCAVAÇÃO MANUAL PARA BLOCO DE COROAMENTO OU SAPATA, SEM PREVISÃO DE FÔRMA. AF_06/2017 | S162: M3 | T162: 57.18 | W162: 0 | X162: Referência: AGETOP - 50901
A163: S | B163: 2 | C163: S | D163: 0 | E163: 2 | F163: 2 | G163: 0 | H163: 0 | I163: 0 | J163: 0 | K163: 0 | M163: Serviço | N163: Serviço | O163: - | P163: AGETOP | Q163: 50902 | R163: APILOAMENTO (BLOCOS/SAPATAS) | S163: m2 | T163: 51.28 | W163: 0
A164: S | B164: 2 | C164: S | D164: 0 | E164: 2 | F164: 2 | G164: 0 | H164: 0 | I164: 0 | J164: 0 | K164: 0 | M164: Serviço | N164: Serviço | O164: - | P164: SINAPI | Q164: 96995 | R164: REATERRO MANUAL APILOADO COM SOQUETE. AF_10/2017 | S164: M3 | T164: 35.3 | W164: 0 | X164: Referência: AGETOP - 40902
A165: 2 | B165: 2 | C165: 2 | D165: 4 | E165: 2 | F165: 3 | G165: 0 | H165: 0 | I165: 0 | J165: 40 | K165: 4 | M165: Nível 2 | N165: Nível 2 | O165: - | P165: AGETOP | R165: FUNDAÇÕES E SONDAGENS | S165: - | W165: 0
A166: S | B166: 2 | C166: S | D166: 0 | E166: 2 | F166: 3 | G166: 0 | H166: 0 | I166: 0 | J166: 0 | K166: 0 | M166: Serviço | N166: Serviço | O166: - | P166: AGETOP | Q166: 51009 | R166: FORMA TABUA PINHO P/FUNDACOES U=3V - (OBRAS CIVIS) | S166: m2 | T166: 106.13 | W166: 0
A167: S | B167: 2 | C167: S | D167: 0 | E167: 2 | F167: 3 | G167: 0 | H167: 0 | I167: 0 | J167: 0 | K167: 0 | M167: Serviço | N167: Serviço | O167: - | P167: SINAPI | Q167: 95240 | R167: LASTRO DE CONCRETO MAGRO, APLICADO EM PISOS OU RADIERS, ESPESSURA DE 3 CM. AF_07/2016 | S167: M2 | T167: 28.84 | W167: 0
A168: S | B168: 2 | C168: S | D168: 0 | E168: 2 | F168: 3 | G168: 0 | H168: 0 | I168: 0 | J168: 0 | K168: 0 | M168: Serviço | N168: Serviço | O168: - | P168: SINAPI | Q168: 94964 | R168: CONCRETO FCK = 20MPA, TRAÇO 1:2,7:3 (CIMENTO/ AREIA MÉDIA/ BRITA 1) - PREPARO MECÂNICO COM BETONEIRA 400 L. AF_07/2016 | S168: M3 | T168: 24.07 | W168: 0
A169: 2 | B169: 2 | C169: 2 | D169: 19 | E169: 2 | F169: 4 | G169: 0 | H169: 0 | I169: 0 | J169: 36 | K169: 19 | M169: Nível 2 | N169: Nível 2 | O169: - | R169: INSTALAÇÕES ELÉTRICAS | S169: - | W169: 0
A170: S | B170: 2 | C170: S | D170: 0 | E170: 2 | F170: 4 | G170: 0 | H170: 0 | I170: 0 | J170: 0 | K170: 0 | M170: Serviço | N170: Serviço | O170: - | P170: AGETOP | Q170: 70371 | R170: BRACADEIRA METALICA TIPO "D" DIAM. 3/4" | S170: Un | T170: 40 | W170: 0
A171: S | B171: 2 | C171: S | D171: 0 | E171: 2 | F171: 4 | G171: 0 | H171: 0 | I171: 0 | J171: 0 | K171: 0 | M171: Serviço | N171: Serviço | O171: - | P171: AGETOP | Q171: 70372 | R171: BRACADEIRA METALICA TIPO "D" DIAM. 1" | S171: Un | T171: 4 | W171: 0
A172: S | B172: 2 | C172: S | D172: 0 | E172: 2 | F172: 4 | G172: 0 | H172: 0 | I172: 0 | J172: 0 | K172: 0 | M172: Serviço | N172: Serviço | O172: - | P172: SINAPI | Q172: 91927 | R172: CABO DE COBRE FLEXÍVEL ISOLADO, 2,5 MM², ANTI-CHAMA 0,6/1,0 KV, PARA CIRCUITOS TERMINAIS - FORNECIMENTO E INSTALAÇÃO. AF_12/2015 | S172: M | T172: 330 | W172: 0 | X172: Referência: AGETOP - 70581
A173: S | B173: 2 | C173: S | D173: 0 | E173: 2 | F173: 4 | G173: 0 | H173: 0 | I173: 0 | J173: 0 | K173: 0 | M173: Serviço | N173: Serviço | O173: - | P173: SINAPI | Q173: 96973 | R173: CORDOALHA DE COBRE NU 35 MM², NÃO ENTERRADA, COM ISOLADOR - FORNECIMENTO E INSTALAÇÃO. AF_12/2017 | S173: M | T173: 8 | W173: 0
A174: S | B174: 2 | C174: S | D174: 0 | E174: 2 | F174: 4 | G174: 0 | H174: 0 | I174: 0 | J174: 0 | K174: 0 | M174: Serviço | N174: Serviço | O174: - | P174: AGETOP | Q174: 71381 | R174: HASTE REV.COBRE(COPPERWELD) 5/8" X 3,00 M C/CONECTOR | S174: Un | T174: 4 | W174: 0
A175: S | B175: 2 | C175: S | D175: 0 | E175: 2 | F175: 4 | G175: 0 | H175: 0 | I175: 0 | J175: 0 | K175: 0 | M175: Serviço | N175: Serviço | O175: - | P175: SINAPI | Q175: 95811 | R175: CONDULETE DE PVC, TIPO LB, PARA ELETRODUTO DE PVC SOLDÁVEL DN 25 MM (3/4''), APARENTE - FORNECIMENTO E INSTALAÇÃO. AF_11/2016 | S175: UN | T175: 5 | W175: 0
A176: S | B176: 2 | C176: S | D176: 0 | E176: 2 | F176: 4 | G176: 0 | H176: 0 | I176: 0 | J176: 0 | K176: 0 | M176: Serviço | N176: Serviço | O176: - | P176: SINAPI | Q176: 95795 | R176: CONDULETE DE ALUMÍNIO, TIPO T, PARA ELETRODUTO DE AÇO GALVANIZADO DN 20 MM (3/4''), APARENTE - FORNECIMENTO E INSTALAÇÃO. AF_11/2016_P | S176: UN | T176: 4 | W176: 0
A177: S | B177: 2 | C177: S | D177: 0 | E177: 2 | F177: 4 | G177: 0 | H177: 0 | I177: 0 | J177: 0 | K177: 0 | M177: Serviço | N177: Serviço | O177: - | P177: SINAPI | Q177: 95801 | R177: CONDULETE DE ALUMÍNIO, TIPO X, PARA ELETRODUTO DE AÇO GALVANIZADO DN 20 MM (3/4''), APARENTE - FORNECIMENTO E INSTALAÇÃO. AF_11/2016_P | S177: UN | T177: 1 | W177: 0 | X177: Referência: AGETOP - 70929
A178: S | B178: 2 | C178: S | D178: 0 | E178: 2 | F178: 4 | G178: 0 | H178: 0 | I178: 0 | J178: 0 | K178: 0 | M178: Serviço | N178: Serviço | O178: - | P178: SINAPI | Q178: 93660 | R178: DISJUNTOR BIPOLAR TIPO DIN, CORRENTE NOMINAL DE 10A - FORNECIMENTO E INSTALAÇÃO. AF_04/2016 | S178: UN | T178: 5 | W178: 0
A179: S | B179: 2 | C179: S | D179: 0 | E179: 2 | F179: 4 | G179: 0 | H179: 0 | I179: 0 | J179: =IF(OR($C179="S",$C179=0),0,MATCH(0,OFFSET($D179,1,$C179,ROW($C$205)-ROW($C179)),0)) -> 0 | K179: =IF(OR($C179="S",$C179=0),0,MATCH(OFFSET($D179,0,$C179)+1,OFFSET($D179,1,$C179,ROW($C$205)-ROW($C179)),0)) -> 0 | M179: Serviço | N179: Serviço | O179: - | P179: SINAPI | Q179: 93669 | R179: DISJUNTOR TRIPOLAR TIPO DIN, CORRENTE NOMINAL DE 20A - FORNECIMENTO E INSTALAÇÃO. AF_04/2016 | S179: UN | T179: 1 | W179: 0
A180: S | B180: 2 | C180: S | D180: 0 | E180: 2 | F180: 4 | G180: 0 | H180: 0 | I180: 0 | J180: 0 | K180: 0 | M180: Serviço | N180: Serviço | O180: - | P180: SINAPI | Q180: 95749 | R180: ELETRODUTO DE AÇO GALVANIZADO, CLASSE LEVE, DN 20 MM (3/4), APARENTE, INSTALADO EM PAREDE - FORNECIMENTO E INSTALAÇÃO. AF_11/2016_P | S180: M | T180: 70 | W180: 0 | X180: Referência: AGETOP - 71211
A181: S | B181: 2 | C181: S | D181: 0 | E181: 2 | F181: 4 | G181: 0 | H181: 0 | I181: 0 | J181: 0 | K181: 0 | M181: Serviço | N181: Serviço | O181: - | P181: SINAPI | Q181: 95750 | R181: ELETRODUTO DE AÇO GALVANIZADO, CLASSE LEVE, DN 25 MM (1), APARENTE, INSTALADO EM PAREDE - FORNECIMENTO E INSTALAÇÃO. AF_11/2016_P | S181: M | T181: 10 | W181: 0
A182: S | B182: 2 | C182: S | D182: 0 | E182: 2 | F182: 4 | G182: 0 | H182: 0 | I182: 0 | J182: 0 | K182: 0 | M182: Serviço | N182: Serviço | O182: - | P182: AGETOP | Q182: 71381 | R182: HASTE REV.COBRE(COPPERWELD) 5/8" X 3,00 M C/CONECTOR | S182: Un | T182: 4 | W182: 0
A183: S | B183: 2 | C183: S | D183: 0 | E183: 2 | F183: 4 | G183: 0 | H183: 0 | I183: 0 | J183: 0 | K183: 0 | M183: Serviço | N183: Serviço | O183: - | P183: AGETOP | Q183: 71609 | R183: LUMINÁRIA BLINDADA PARA TETO COM GRADE ( MÉDIA ) - BASE E-27 | S183: Un | T183: 10 | W183: 0
A184: S | B184: 2 | C184: S | D184: 0 | E184: 2 | F184: 4 | G184: 0 | H184: 0 | I184: 0 | J184: 0 | K184: 0 | M184: Serviço | N184: Serviço | O184: - | P184: SINAPI | Q184: 73831/6 | R184: LAMPADA MISTA DE 500W - FORNECIMENTO E INSTALACAO | S184: UN | T184: 10 | W184: 0
A185: S | B185: 2 | C185: S | D185: 0 | E185: 2 | F185: 4 | G185: 0 | H185: 0 | I185: 0 | J185: 0 | K185: 0 | M185: Serviço | N185: Serviço | O185: - | P185: AGETOP | Q185: 71701 | R185: LUVA EM AÇO GALVANIZADO DIÂMETRO 3/4" | S185: Un | T185: 10 | W185: 0
A186: S | B186: 2 | C186: S | D186: 0 | E186: 2 | F186: 4 | G186: 0 | H186: 0 | I186: 0 | J186: 0 | K186: 0 | M186: Serviço | N186: Serviço | O186: - | P186: AGETOP | Q186: 71702 | R186: LUVA EM AÇO GALVANIZADO DIÂMETRO 1" | S186: Un | T186: 2 | W186: 0
A187: S | B187: 2 | C187: S | D187: 0 | E187: 2 | F187: 4 | G187: 0 | H187: 0 | I187: 0 | J187: 0 | K187: 0 | M187: Serviço | N187: Serviço | O187: - | P187: SINAPI | Q187: 74131/4 | R187: QUADRO DE DISTRIBUICAO DE ENERGIA DE EMBUTIR, EM CHAPA METALICA, PARA 18 DISJUNTORES TERMOMAGNETICOS MONOPOLARES, COM BARRAMENTO TRIFASICO E NEUTRO, FORNECIMENTO E INSTALACAO | S187: UN | T187: 1 | W187: 0
A188: 2 | B188: 2 | C188: 2 | D188: 6 | E188: 2 | F188: 5 | G188: 0 | H188: 0 | I188: 0 | J188: 17 | K188: 6 | M188: Nível 2 | N188: Nível 2 | O188: - | P188: AGETOP | R188: INSTALAÇÕES HIDROSSANITÁRIAS | S188: - | W188: 0
A189: 3 | B189: 3 | C189: 3 | D189: 5 | E189: 2 | F189: 5 | G189: 1 | H189: 0 | I189: 0 | J189: 5 | M189: Nível 3 | N189: Nível 3 | O189: - | P189: SINAPI | R189: DRENAGEM PLUVIAL | S189: - | W189: 0
A190: S | B190: 3 | C190: S | D190: 0 | E190: 2 | F190: 5 | G190: 1 | H190: 0 | I190: 0 | J190: 0 | K190: 0 | M190: Serviço | N190: Serviço | O190: - | P190: SINAPI | Q190: 94228 | R190: CALHA EM CHAPA DE AÇO GALVANIZADO NÚMERO 24, DESENVOLVIMENTO DE 50 CM, INCLUSO TRANSPORTE VERTICAL. AF_07/2019 | S190: M | T190: 64.32 | W190: 0 | X190: Referência: AGETOP - 160601
A191: S | B191: 3 | C191: S | D191: 0 | E191: 2 | F191: 5 | G191: 1 | H191: 0 | I191: 0 | J191: 0 | K191: 0 | M191: Serviço | N191: Serviço | O191: - | P191: SINAPI | Q191: 89580 | R191: TUBO PVC, SÉRIE R, ÁGUA PLUVIAL, DN 150 MM, FORNECIDO E INSTALADO EM CONDUTORES VERTICAIS DE ÁGUAS PLUVIAIS. AF_12/2014 | S191: M | T191: 22 | W191: 0
A192: S | B192: 3 | C192: S | D192: 0 | E192: 2 | F192: 5 | G192: 1 | H192: 0 | I192: 0 | J192: 0 | K192: 0 | M192: Serviço | N192: Serviço | O192: - | P192: SINAPI | Q192: 89590 | R192: JOELHO 90 GRAUS, PVC, SERIE R, ÁGUA PLUVIAL, DN 150 MM, JUNTA ELÁSTICA, FORNECIDO E INSTALADO EM CONDUTORES VERTICAIS DE ÁGUAS PLUVIAIS. AF_12/2014 | S192: UN | T192: 12 | W192: 0
A193: S | B193: 3 | C193: S | D193: 0 | E193: 2 | F193: 5 | G193: 1 | H193: 0 | I193: 0 | J193: 0 | K193: 0 | M193: Serviço | N193: Serviço | O193: - | P193: COMPOSIÇÃO | Q193: COMP 074_SEE | R193: RALO SEMI-ESFERICO FoFo TP ABACAXI D = 150MM | S193: UN | T193: 4 | W193: 0
A194: 2 | B194: 2 | C194: 2 | D194: 2 | E194: 2 | F194: 6 | G194: 0 | H194: 0 | I194: 0 | J194: 11 | K194: 2 | M194: Nível 2 | N194: Nível 2 | O194: - | P194: SINAPI | R194: ESTRUTURAS METÁLICAS | S194: - | W194: 0
A195: S | B195: 2 | C195: S | D195: 0 | E195: 2 | F195: 6 | G195: 0 | H195: 0 | I195: 0 | J195: 0 | K195: 0 | M195: Serviço | N195: Serviço | O195: - | P195: AGETOP | Q195: 150103 | R195: ESTRUTURA METÁLICA CONVENCIONAL EM AÇO DO TIPO USI SAC-300 COM FUNDO ANTICORROSIVO | S195: Kg | T195: 7740 | W195: 0
A196: 2 | B196: 2 | C196: 2 | D196: 5 | E196: 2 | F196: 7 | G196: 0 | H196: 0 | I196: 0 | J196: 9 | K196: 5 | M196: Nível 2 | N196: Nível 2 | O196: - | P196: SINAPI | R196: COBERTURAS | S196: - | W196: 0
A197: S | B197: 2 | C197: S | D197: 0 | E197: 2 | F197: 7 | G197: 0 | H197: 0 | I197: 0 | J197: 0 | K197: 0 | M197: Serviço | N197: Serviço | O197: - | P197: AGETOP | Q197: 160966 | R197: COBERTURA COM TELHA GALVANIZADA ONDULADA 0,5 MM COM ACESSÓRIOS | S197: m2 | T197: 594.86 | W197: 0
A198: S | B198: 2 | C198: S | D198: 0 | E198: 2 | F198: 7 | G198: 0 | H198: 0 | I198: 0 | J198: 0 | K198: 0 | M198: Serviço | N198: Serviço | O198: - | P198: AGETOP | Q198: 160970 | R198: FECHAMENTO LATERAL COM TELHA GALVANIZADA TRAPEZOIDAL 0,43 MM COM ACESSÓRIOS | S198: m2 | T198: 248.16 | W198: 0
A199: S | B199: 2 | C199: S | D199: 0 | E199: 2 | F199: 7 | G199: 0 | H199: 0 | I199: 0 | J199: 0 | K199: 0 | M199: Serviço | N199: Serviço | O199: - | P199: SINAPI | Q199: 94449 | R199: TELHAMENTO COM TELHA ONDULADA DE FIBRA DE VIDRO E = 0,6 MM, PARA TELHADO COM INCLINAÇÃO MAIOR QUE 10°, COM ATÉ 2 ÁGUAS, INCLUSO IÇAMENTO. AF_07/2019 | S199: M2 | T199: 61.2 | W199: 0
A200: S | B200: 2 | C200: S | D200: 0 | E200: 2 | F200: 7 | G200: 0 | H200: 0 | I200: 0 | J200: 0 | K200: 0 | M200: Serviço | N200: Serviço | O200: - | P200: SINAPI | Q200: 94964 | R200: CONCRETO FCK = 20MPA, TRAÇO 1:2,7:3 (CIMENTO/ AREIA MÉDIA/ BRITA 1) - PREPARO MECÂNICO COM BETONEIRA 400 L. AF_07/2016 | S200: M3 | T200: 5.4 | W200: 0
A201: 2 | B201: 2 | C201: 2 | D201: 2 | E201: 2 | F201: 8 | G201: 0 | H201: 0 | I201: 0 | J201: 4 | K201: 2 | M201: Nível 2 | N201: Nível 2 | O201: - | P201: SINAPI | R201: PINTURA | S201: - | W201: 0
A202: S | B202: 2 | C202: S | D202: 0 | E202: 2 | F202: 8 | G202: 0 | H202: 0 | I202: 0 | J202: 0 | K202: 0 | M202: Serviço | N202: Serviço | O202: - | P202: SINAPI | Q202: 74145/1 | R202: PINTURA ESMALTE FOSCO, DUAS DEMAOS, SOBRE SUPERFICIE METALICA, INCLUSO UMA DEMAO DE FUNDO ANTICORROSIVO. UTILIZACAO DE REVOLVER ( AR-COMPRIMIDO). | S202: M2 | T202: 594.86 | W202: 0 | X202: Referência: AGETOP - 261602
A203: 2 | B203: 2 | C203: 2 | D203: 2 | E203: 2 | F203: 9 | G203: 0 | H203: 0 | I203: 0 | J203: 2 | M203: Nível 2 | N203: Nível 2 | O203: - | R203: DIVERSOS | S203: - | W203: 0
A204: S | B204: 2 | C204: S | D204: 0 | E204: 2 | F204: 9 | G204: 0 | H204: 0 | I204: 0 | J204: 0 | K204: 0 | M204: Serviço | N204: Serviço | O204: - | P204: AGETOP | Q204: 270501 | R204: LIMPEZA FINAL DE OBRA - (OBRAS CIVIS) | S204: m2 | T204: 627 | W204: 0
A205: -1 | C205: -1 | E205: 0 | F205: 0 | G205: 0 | H205: 0 | I205: 0 | L205: F
L206: F | R206: OBS: OS QUANTITATIVOS DE MATERIAIS DAS INSTALAÇÕES HIDROSSANITÁRIAS, ELÉTRICAS E ESPECIAIS SÃO FORNECIDOS PELOS PROFISSIONAIS RESPONSÁVEIS PELOS RESPECTIVOS PROJETOS. | U206: VALOR TOTAL | W206: 0
... 72 more rows

Sheet Resumo
B3: UNIDADE ESCOLAR | G3: CÓDIGO INEP
B4: =Orçamento!$O$4 -> COLÉGIO ESTADUAL JOÃO BÊNNIO | G4: =Orçamento!V4 -> 52035131
B6: OBRA | G6: CIDADE
B7: =Orçamento!$O$7 -> AMPLIAÇÃO E REFORMA | G7: =Orçamento!$V$7 -> GOIÂNIA
B9: ENDEREÇO | G9: CRE
B10: =Orçamento!$R$10 -> RUA JC QUADRA 140 AREA VERDE S/N, JD CURITIBA III, CEP:74481-130 | G10: =Orçamento!$O$10 -> GOIÂNIA
B12: REFERÊNCIA | D12: DATA | G12: ÁREA TOTAL CONSTRUÍDA (M²)
B13: =CONCATENATE("AGETOP E SINAPI - ",Orçamento!$W$10) -> AGETOP E SINAPI - ONERADA | D13: =Orçamento!$S$7 -> 2020-04-08 | G13: =Orçamento!$S$13 -> 1205
A14: FILTRO
B15: RESUMO GERAL DO ORÇAMENTO
A16: ↓ | B16: ITEM | C16: DESCRIÇÃO DOS SERVIÇOS | E16: UNID | F16: QUANT | G16: PREÇO SEM BDI | H16: PREÇO COM BDI | I16: PARTICIP. (%)
A17: =IF(E17>0,"F","") -> F | B17: 1. | C17: =Orçamento!$P258 -> AMPLIAÇÃO E REFORMA | E17: UN | F17: 1 | G17: =IFERROR(Orçamento!S258,"-") -> 0 | H17: =IFERROR(Orçamento!V258,"") -> 0 | I17: =Orçamento!X258 -> 
A18: =IF(E18>0,"F","") -> F | B18: 2. | C18: =Orçamento!$P259 -> COBERTURA DE QUADRA PEQUENA FNDE | E18: UN | F18: 1 | G18: =IFERROR(Orçamento!S259,"-") -> 0 | H18: =IFERROR(Orçamento!V259,"") -> 0 | I18: =Orçamento!X259 -> 
B19: 3. | C19: =Orçamento!$P260 ->  | G19: =IFERROR(Orçamento!S260,"-") -> 0 | H19: =IFERROR(Orçamento!V260,"") -> 0 | I19: =Orçamento!X260 -> 
B20: 4. | C20: =Orçamento!$P261 ->  | G20: =IFERROR(Orçamento!S261,"-") -> 0 | H20: =IFERROR(Orçamento!V261,"") -> 0 | I20: =Orçamento!X261 -> 
B21: 5. | C21: =Orçamento!$P262 ->  | G21: =IFERROR(Orçamento!S262,"-") -> 0 | H21: =IFERROR(Orçamento!V262,"") -> 0 | I21: =Orçamento!X262 -> 
B22: 6. | C22: =Orçamento!$P263 ->  | G22: =IFERROR(Orçamento!S263,"-") -> 0 | H22: =IFERROR(Orçamento!V263,"") -> 0 | I22: =Orçamento!X263 -> 
B23: 7. | C23: =Orçamento!$P264 ->  | G23: =IFERROR(Orçamento!S264,"-") -> 0 | H23: =IFERROR(Orçamento!V264,"") -> 0 | I23: =Orçamento!X264 -> 
B24: 8. | C24: =Orçamento!$P265 ->  | G24: =IFERROR(Orçamento!S265,"-") -> 0 | H24: =IFERROR(Orçamento!V265,"") -> 0 | I24: =Orçamento!X265 -> 
B25: 9. | C25: =Orçamento!$P266 ->  | G25: =IFERROR(Orçamento!S266,"-") -> 0 | H25: =IFERROR(Orçamento!V266,"") -> 0 | I25: =Orçamento!X266 -> 
B26: 10. | C26: =Orçamento!$P267 ->  | G26: =IFERROR(Orçamento!S267,"-") -> 0 | H26: =IFERROR(Orçamento!V267,"") -> 0 | I26: =Orçamento!X267 -> 
B27: 11. | C27: =Orçamento!$P268 ->  | G27: =IFERROR(Orçamento!S268,"-") -> 0 | H27: =IFERROR(Orçamento!V268,"") -> 0 | I27: =Orçamento!X268 -> 
B28: 12. | C28: =Orçamento!$P269 ->  | G28: =IFERROR(Orçamento!S269,"-") -> 0 | H28: =IFERROR(Orçamento!V269,"") -> 0 | I28: =Orçamento!X269 -> 
B29: 13. | C29: =Orçamento!$P270 ->  | G29: =IFERROR(Orçamento!S270,"-") -> 0 | H29: =IFERROR(Orçamento!V270,"") -> 0 | I29: =Orçamento!X270 -> 
B30: 14. | C30: =Orçamento!$P271 ->  | G30: =IFERROR(Orçamento!S271,"-") -> 0 | H30: =IFERROR(Orçamento!V271,"") -> 0 | I30: =Orçamento!X271 -> 
B31: 15. | C31: =Orçamento!$P272 ->  | G31: =IFERROR(Orçamento!S272,"-") -> 0 | H31: =IFERROR(Orçamento!V272,"") -> 0 | I31: =Orçamento!X272 -> 
B32: 16. | C32: =Orçamento!$P273 ->  | G32: =IFERROR(Orçamento!S273,"-") -> 0 | H32: =IFERROR(Orçamento!V273,"") -> 0 | I32: =Orçamento!X273 -> 
B33: 17. | C33: =Orçamento!$P274 ->  | G33: =IFERROR(Orçamento!S274,"-") -> 0 | H33: =IFERROR(Orçamento!V274,"") -> 0 | I33: =Orçamento!X274 -> 
B34: 18. | C34: =Orçamento!$P275 ->  | G34: =IFERROR(Orçamento!S275,"-") -> 0 | H34: =IFERROR(Orçamento!V275,"") -> 0 | I34: =Orçamento!X275 -> 
B35: 19. | C35: =Orçamento!$P276 ->  | G35: =IFERROR(Orçamento!S276,"-") -> 0 | H35: =IFERROR(Orçamento!V276,"") -> 0 | I35: =Orçamento!X276 -> 
B36: 20. | C36: =Orçamento!$P277 ->  | G36: =IFERROR(Orçamento!S277,"-") -> 0 | H36: =IFERROR(Orçamento!V277,"") -> 0 | I36: =Orçamento!X277 -> 
A37: F | B37: TOTAL GERAL DO ORÇAMENTO (R$) | G37: =SUM(G17:G36) -> 0 | H37: 0 | I37: =SUM(I17:I36) -> 
A38: F
A39: F

Sheet Somatório
B3: UNIDADE ESCOLAR | E3: CÓDIGO INEP
B4: =Orçamento!$O$4 -> COLÉGIO ESTADUAL JOÃO BÊNNIO | E4: =Orçamento!V4 -> 52035131
B6: OBRA | E6: CIDADE
B7: =Orçamento!$O$7 -> AMPLIAÇÃO E REFORMA | E7: =Orçamento!$V$7 -> GOIÂNIA
B9: ENDEREÇO | E9: CRE
B10: =Orçamento!$R$10 -> RUA JC QUADRA 140 AREA VERDE S/N, JD CURITIBA III, CEP:74481-130 | E10: =Orçamento!$O$10 -> GOIÂNIA
B12: REFERÊNCIA | D12: DATA | E12: ÁREA TOTAL CONSTRUÍDA (M²)
B13: =CONCATENATE("AGETOP E SINAPI - ",Orçamento!$W$10) -> AGETOP E SINAPI - ONERADA | D13: =Orçamento!$S$7 -> 2020-04-08 | E13: =Orçamento!$S$13 -> 1205
A14: FILTRO
B15: SOMATÓRIO DE SERVIÇOS
A16: ↓ | B16: ITEM | C16: DESCRIÇÃO DOS SERVIÇOS | D16: PREÇO SEM BDI (R$) | E16: PREÇO COM BDI (R$) | F16: PARTIC. ( % )
A17: =IF(D17>0,"F","") ->  | B17: a. | C17: =Orçamento!P224 -> SERVIÇOS PRELIMINARES | D17: =Orçamento!S224 -> 0 | E17: =Orçamento!V224 -> 0 | F17: =Orçamento!X224 -> 0 | G17: 4 | H17: 1 | I17: 8
A18: =IF(D18>0,"F","") ->  | B18: b. | C18: =Orçamento!P225 -> TRANSPORTES | D18: =Orçamento!S225 -> 0 | E18: =Orçamento!V225 -> 0 | F18: =Orçamento!X225 -> 0 | G18: 0 | H18: 8 | I18: 8
B19: c. | C19: =Orçamento!P226 -> SERVIÇO EM TERRA | D19: =Orçamento!S226 -> 0 | E19: =Orçamento!V226 -> 0 | F19: =Orçamento!X226 -> 0 | G19: 4 | H19: 6 | I19: 1
B20: d. | C20: =Orçamento!P227 -> FUNDAÇÕES E SONDAGENS | D20: =Orçamento!S227 -> 0 | E20: =Orçamento!V227 -> 0 | F20: =Orçamento!X227 -> 0 | G20: 9 | H20: 8 | I20: 5
B21: e. | C21: =Orçamento!P228 -> ESTRUTURA | D21: =Orçamento!S228 -> 0 | E21: =Orçamento!V228 -> 0 | F21: =Orçamento!X228 -> 0
B22: f. | C22: =Orçamento!P229 -> INSTALAÇÕES ELÉTRICAS | D22: =Orçamento!S229 -> 0 | E22: =Orçamento!V229 -> 0 | F22: =Orçamento!X229 -> 0 | G22: 3 | H22: 8 | I22: 9
B23: g. | C23: =Orçamento!P230 -> INSTALAÇÕES HIDROSSANITÁRIAS | D23: =Orçamento!S230 -> 0 | E23: =Orçamento!V230 -> 0 | F23: =Orçamento!X230 -> 0 | G23: 7 | H23: 4 | I23: 3
B24: h. | C24: =Orçamento!P231 -> INSTALAÇÕES ESPECIAIS | D24: =Orçamento!S231 -> 0 | E24: =Orçamento!V231 -> 0 | F24: =Orçamento!X231 -> 0 | G24: 5 | H24: 2 | I24: 5
B25: i. | C25: =Orçamento!P232 -> ALVENARIAS E DIVISÓRIAS | D25: =Orçamento!S232 -> 0 | E25: =Orçamento!V232 -> 0 | F25: =Orçamento!X232 -> 0
B26: j. | C26: =Orçamento!P233 -> ALVENARIA AUTO-PORTANTE | D26: =Orçamento!S233 -> 0 | E26: =Orçamento!V233 -> 0 | F26: =Orçamento!X233 -> 0
B27: k. | C27: =Orçamento!P234 -> IMPERMEABILIZAÇÃO | D27: =Orçamento!S234 -> 0 | E27: =Orçamento!V234 -> 0 | F27: =Orçamento!X234 -> 0
B28: l. | C28: =Orçamento!P235 -> ISOLAMENTO TÉRMICO E ACÚSTICO | D28: =Orçamento!S235 -> 0 | E28: =Orçamento!V235 -> 0 | F28: =Orçamento!X235 -> 0
B29: m. | C29: =Orçamento!P236 -> ESTRUTURA DE MADEIRA | D29: =Orçamento!S236 -> 0 | E29: =Orçamento!V236 -> 0 | F29: =Orçamento!X236 -> 0
B30: n. | C30: =Orçamento!P237 -> ESTRUTURAS METÁLICAS | D30: =Orçamento!S237 -> 0 | E30: =Orçamento!V237 -> 0 | F30: =Orçamento!X237 -> 0 | G30: 0 | H30: 1 | I30: 2
B31: o. | C31: =Orçamento!P238 -> COBERTURAS | D31: =Orçamento!S238 -> 0 | E31: =Orçamento!V238 -> 0 | F31: =Orçamento!X238 -> 0 | G31: 5 | H31: 9 | I31: 9
B32: p. | C32: =Orçamento!P239 -> ESQUADRIAS DE MADEIRA | D32: =Orçamento!S239 -> 0 | E32: =Orçamento!V239 -> 0 | F32: =Orçamento!X239 -> 0
B33: q. | C33: =Orçamento!P240 -> ESQUADRIAS METÁLICAS | D33: =Orçamento!S240 -> 0 | E33: =Orçamento!V240 -> 0 | F33: =Orçamento!X240 -> 0
B34: r. | C34: =Orçamento!P241 -> VIDROS | D34: =Orçamento!S241 -> 0 | E34: =Orçamento!V241 -> 0 | F34: =Orçamento!X241 -> 0
B35: s. | C35: =Orçamento!P242 -> REVESTIMENTO DE PAREDE | D35: =Orçamento!S242 -> 0 | E35: =Orçamento!V242 -> 0 | F35: =Orçamento!X242 -> 0
B36: t. | C36: =Orçamento!P243 -> FORROS | D36: =Orçamento!S243 -> 0 | E36: =Orçamento!V243 -> 0 | F36: =Orçamento!X243 -> 0 | G36: 5 | H36: 6 | I36: 7
B37: u. | C37: =Orçamento!P244 -> REVESTIMENTO DE PISO | D37: =Orçamento!S244 -> 0 | E37: =Orçamento!V244 -> 0 | F37: =Orçamento!X244 -> 0 | G37: 0 | H37: 7 | I37: 7
B38: v. | C38: =Orçamento!P245 -> FERRAGENS | D38: =Orçamento!S245 -> 0 | E38: =Orçamento!V245 -> 0 | F38: =Orçamento!X245 -> 0 | G38: 3 | H38: 2 | I38: 5
B39: w. | C39: =Orçamento!P246 -> MARCENARIA | D39: =Orçamento!S246 -> 0 | E39: =Orçamento!V246 -> 0 | F39: =Orçamento!X246 -> 0
B40: x. | C40: =Orçamento!P247 -> ADMINISTRAÇÃO | D40: =Orçamento!S247 -> 0 | E40: =Orçamento!V247 -> 0 | F40: =Orçamento!X247 -> 0 | G40: 6 | H40: 1 | I40: 2
B41: y. | C41: =Orçamento!P248 -> PINTURA | D41: =Orçamento!S248 -> 0 | E41: =Orçamento!V248 -> 0 | F41: =Orçamento!X248 -> 0 | G41: 7 | H41: 5 | I41: 8
B42: z. | C42: =Orçamento!P249 -> DIVERSOS | D42: =Orçamento!S249 -> 0 | E42: =Orçamento!V249 -> 0 | F42: =Orçamento!X249 -> 0 | G42: 2 | H42: 9 | I42: 1
A43: F | B43: TOTAL GERAL DO ORÇAMENTO | D43: =SUM(D17:D42) -> 0 | E43: 0 | F43: 0 | G43: 60 | H43: 77 | I43: 80
B45: (*) Para itens da AGETOP, os vidros não estão inclusos nas esquadrias e já foram considerados os custos de contramarco para as esquadrias de alumínio;

Sheet Cronog_60_Dias
B3: UNIDADE ESCOLAR | I3: PRAZO
B4: =Orçamento!$O$4 -> COLÉGIO ESTADUAL JOÃO BÊNNIO | I4: 60 DIAS CORRIDOS
B6: OBRA | I6: DATA
B7: =Orçamento!$O$7 -> AMPLIAÇÃO E REFORMA | I7: =Orçamento!$S$7 -> 2020-04-08
B9: LOCAL | I9: ÁREA TOTAL CONSTRUÍDA (M²)
A10: FILTRO | B10: =Orçamento!$V$7 -> GOIÂNIA | I10: =Orçamento!$S$13 -> 1205
B12: CRONOGRAMA - FÍSICO FINANCEIRO
A13: ↓ | B13: CUSTO TOTAL: | C13: =D93 -> 0 | D13: VALOR | E13: Dias: | F13: 30 | J13: 60 | N13: TOTAL
B14: DESCRIÇÃO DOS SERVIÇOS | E14: % | F14: 1ª PARCELA | J14: 2ª PARCELA
A15: =IF(D15>0,"F","") ->  | B15: SERVIÇOS PRELIMINARES | D15: =Orçamento!V224 -> 0 | E15: =Orçamento!X224 -> 0 | F15: =ROUND(F17*$D$15,2) -> 0 | J15: =ROUND(J17*$D$15,2) -> 0 | N15: =SUM(F15:M15) -> 0
A16: =IF(A15="F",A15,"") -> 
A17: =IF(A16="F",A16,"") ->  | F17: 1 | J17: =1-F17 -> 0 | N17: =IFERROR(E15/100,"") -> 0
A18: =IF(D18>0,"F","") ->  | B18: TRANSPORTES | D18: =Orçamento!V225 -> 0 | E18: =Orçamento!X225 -> 0 | F18: =ROUND(F20*$D$18,2) -> 0 | J18: =ROUND(J20*$D$18,2) -> 0 | N18: =SUM(F18:M18) -> 0
A19: =IF(A18="F",A18,"") -> 
A20: =IF(A19="F",A19,"") ->  | F20: 0.48 | J20: =1-F20 -> 0.52 | N20: =IFERROR(E18/100,"") -> 0
A21: =IF(D21>0,"F","") ->  | B21: SERVIÇO EM TERRA | D21: =Orçamento!V226 -> 0 | E21: =Orçamento!X226 -> 0 | F21: =ROUND(F23*$D$21,2) -> 0 | J21: =ROUND(J23*$D$21,2) -> 0 | N21: =SUM(F21:M21) -> 0
A22: =IF(A21="F",A21,"") -> 
A23: =IF(A22="F",A22,"") ->  | F23: 1 | J23: =1-F23 -> 0 | N23: =IFERROR(E21/100,"") -> 0
A24: =IF(D24>0,"F","") ->  | B24: FUNDAÇÕES E SONDAGENS | D24: =Orçamento!V227 -> 0 | E24: =Orçamento!X227 -> 0 | F24: =ROUND(F26*$D$24,2) -> 0 | J24: =ROUND(J26*$D$24,2) -> 0 | N24: =SUM(F24:M24) -> 0
A25: =IF(A24="F",A24,"") -> 
A26: =IF(A25="F",A25,"") ->  | F26: 1 | J26: =1-F26 -> 0 | N26: =IFERROR(E24/100,"") -> 0
A27: =IF(D27>0,"F","") ->  | B27: ESTRUTURA | D27: =Orçamento!V228 -> 0 | E27: =Orçamento!X228 -> 0 | F27: =ROUND(F29*$D$27,2) -> 0 | J27: =ROUND(J29*$D$27,2) -> 0 | N27: =SUM(F27:M27) -> 0
A28: =IF(A27="F",A27,"") -> 
A29: =IF(A28="F",A28,"") ->  | F29: 0.49 | J29: =1-F29 -> 0.51 | N29: =IFERROR(E27/100,"") -> 0
A30: =IF(D30>0,"F","") ->  | B30: INST.ELET/TELEFÔNICA/CABEAMENTO ESTRUTURADO | D30: =Orçamento!V229 -> 0 | E30: =Orçamento!X229 -> 0 | F30: =ROUND(F32*$D$30,2) -> 0 | J30: =ROUND(J32*$D$30,2) -> 0 | N30: =SUM(F30:M30) -> 0
A31: =IF(A30="F",A30,"") -> 
A32: =IF(A31="F",A31,"") ->  | F32: 0.4 | J32: =1-F32 -> 0.6 | N32: =IFERROR(E30/100,"") -> 0
A33: =IF(D33>0,"F","") ->  | B33: INSTALAÇÕES HIDROSSANITÁRIAS | D33: =Orçamento!V230 -> 0 | E33: =Orçamento!X230 -> 0 | F33: =ROUND(F35*$D$33,2) -> 0 | J33: =ROUND(J35*$D$33,2) -> 0 | N33: =SUM(F33:M33) -> 0
A34: =IF(A33="F",A33,"") -> 
A35: =IF(A34="F",A34,"") ->  | F35: 0.48 | J35: =1-F35 -> 0.52 | N35: =IFERROR(E33/100,"") -> 0
A36: =IF(D36>0,"F","") ->  | B36: INSTALAÇÕES ESPECIAIS | D36: =Orçamento!V231 -> 0 | E36: =Orçamento!X231 -> 0 | F36: =ROUND(F38*$D$36,2) -> 0 | J36: =ROUND(J38*$D$36,2) -> 0 | N36: =SUM(F36:M36) -> 0
A37: =IF(A36="F",A36,"") -> 
A38: =IF(A37="F",A37,"") ->  | F38: 1 | J38: =1-F38 -> 0 | N38: =IFERROR(E36/100,"") -> 0
A39: =IF(D39>0,"F","") ->  | B39: ALVENARIA E DIVISÓRIAS | D39: =Orçamento!V232 -> 0 | E39: =Orçamento!X232 -> 0 | F39: =ROUND(F41*$D$39,2) -> 0 | J39: =ROUND(J41*$D$39,2) -> 0 | N39: =SUM(F39:M39) -> 0
A40: =IF(A39="F",A39,"") -> 
A41: =IF(A40="F",A40,"") ->  | F41: 1 | J41: =1-F41 -> 0 | N41: =IFERROR(E39/100,"") -> 0
A42: =IF(D42>0,"F","") ->  | B42: ALVENARIA AUTO-PORTANTE | D42: =Orçamento!V233 -> 0 | E42: =Orçamento!X233 -> 0 | F42: =ROUND(F44*$D$42,2) -> 0 | J42: =ROUND(J44*$D$42,2) -> 0 | N42: =SUM(F42:M42) -> 0
A43: =IF(A42="F",A42,"") -> 
A44: =IF(A43="F",A43,"") ->  | F44: 1 | J44: =1-F44 -> 0 | N44: =IFERROR(E42/100,"") -> 0
A45: =IF(D45>0,"F","") ->  | B45: IMPERMEABILIZAÇÃO | D45: =Orçamento!V234 -> 0 | E45: =Orçamento!X234 -> 0 | F45: =ROUND(F47*$D$45,2) -> 0 | J45: =ROUND(J47*$D$45,2) -> 0 | N45: =SUM(F45:M45) -> 0
A46: =IF(A45="F",A45,"") -> 
A47: =IF(A46="F",A46,"") ->  | F47: 1 | J47: =1-F47 -> 0 | N47: =IFERROR(E45/100,"") -> 0
A48: =IF(D48>0,"F","") ->  | B48: ISOLAMENTO TÉRMICO E ACÚSTICO | D48: =Orçamento!V235 -> 0 | E48: =Orçamento!X235 -> 0 | F48: =ROUND(F50*$D$48,2) -> 0 | J48: =ROUND(J50*$D$48,2) -> 0 | N48: =SUM(F48:M48) -> 0
A49: =IF(A48="F",A48,"") -> 
A50: =IF(A49="F",A49,"") ->  | F50: 0.5 | J50: =1-F50 -> 0.5 | N50: =IFERROR(E48/100,"") -> 0
A51: =IF(D51>0,"F","") ->  | B51: ESTRUTURA DE MADEIRA | D51: =Orçamento!V236 -> 0 | E51: =Orçamento!X236 -> 0 | F51: =ROUND(F53*$D$51,2) -> 0 | J51: =ROUND(J53*$D$51,2) -> 0 | N51: =SUM(F51:M51) -> 0
A52: =IF(A51="F",A51,"") -> 
A53: =IF(A52="F",A52,"") ->  | F53: 0.4 | J53: =1-F53 -> 0.6 | N53: =IFERROR(E51/100,"") -> 0
A54: =IF(D54>0,"F","") ->  | B54: ESTRUTURA METÁLICA | D54: =Orçamento!V237 -> 0 | E54: =Orçamento!X237 -> 0 | F54: =ROUND(F56*$D$54,2) -> 0 | J54: =ROUND(J56*$D$54,2) -> 0 | N54: =SUM(F54:M54) -> 0
A55: =IF(A54="F",A54,"") -> 
A56: =IF(A55="F",A55,"") ->  | F56: 0.48 | J56: =1-F56 -> 0.52 | N56: =IFERROR(E54/100,"") -> 0
A57: =IF(D57>0,"F","") ->  | B57: COBERTURAS | D57: =Orçamento!V238 -> 0 | E57: =Orçamento!X238 -> 0 | F57: =ROUND(F59*$D$57,2) -> 0 | J57: =ROUND(J59*$D$57,2) -> 0 | N57: =SUM(F57:M57) -> 0
A58: =IF(A57="F",A57,"") -> 
A59: =IF(A58="F",A58,"") ->  | F59: 0 | J59: =1-F59 -> 1 | N59: =IFERROR(E57/100,"") -> 0
A60: =IF(D60>0,"F","") ->  | B60: ESQUADRIAS DE MADEIRA | D60: =Orçamento!V239 -> 0 | E60: =Orçamento!X239 -> 0 | F60: =ROUND(F62*$D$60,2) -> 0 | J60: =ROUND(J62*$D$60,2) -> 0 | N60: =SUM(F60:M60) -> 0
A61: =IF(A60="F",A60,"") -> 
A62: =IF(A61="F",A61,"") ->  | F62: 0.54 | J62: =1-F62 -> 0.46 | N62: =IFERROR(E60/100,"") -> 0
A63: =IF(D63>0,"F","") ->  | B63: ESQUADRIAS METÁLICAS | D63: =Orçamento!V240 -> 0 | E63: =Orçamento!X240 -> 0 | F63: =ROUND(F65*$D$63,2) -> 0 | J63: =ROUND(J65*$D$63,2) -> 0 | N63: =SUM(F63:M63) -> 0
A64: =IF(A63="F",A63,"") -> 
A65: =IF(A64="F",A64,"") ->  | F65: 0.49 | J65: =1-F65 -> 0.51 | N65: =IFERROR(E63/100,"") -> 0
A66: =IF(D66>0,"F","") ->  | B66: VIDROS | D66: =Orçamento!V241 -> 0 | E66: =Orçamento!X241 -> 0 | F66: =ROUND(F68*$D$66,2) -> 0 | J66: =ROUND(J68*$D$66,2) -> 0 | N66: =SUM(F66:M66) -> 0
A67: =IF(A66="F",A66,"") -> 
A68: =IF(A67="F",A67,"") ->  | F68: 0 | J68: =1-F68 -> 1 | N68: =IFERROR(E66/100,"") -> 0
A69: =IF(D69>0,"F","") ->  | B69: REVESTIMENTO DE PAREDE | D69: =Orçamento!V242 -> 0 | E69: =Orçamento!X242 -> 0 | F69: =ROUND(F71*$D$69,2) -> 0 | J69: =ROUND(J71*$D$69,2) -> 0 | N69: =SUM(F69:M69) -> 0
A70: =IF(A69="F",A69,"") -> 
A71: =IF(A70="F",A70,"") ->  | F71: 0.32 | J71: =1-F71 -> 0.68 | N71: =IFERROR(E69/100,"") -> 0
A72: =IF(D72>0,"F","") ->  | B72: FORROS | D72: =Orçamento!V243 -> 0 | E72: =Orçamento!X243 -> 0 | F72: =ROUND(F74*$D$72,2) -> 0 | J72: =ROUND(J74*$D$72,2) -> 0 | N72: =SUM(F72:M72) -> 0
A73: =IF(A72="F",A72,"") -> 
A74: =IF(A73="F",A73,"") ->  | F74: 0.24 | J74: =1-F74 -> 0.76 | N74: =IFERROR(E72/100,"") -> 0
A75: =IF(D75>0,"F","") ->  | B75: REVESTIMENTO DE PISO | D75: =Orçamento!V244 -> 0 | E75: =Orçamento!X244 -> 0 | F75: =ROUND(F77*$D$75,2) -> 0 | J75: =ROUND(J77*$D$75,2) -> 0 | N75: =SUM(F75:M75) -> 0
A76: =IF(A75="F",A75,"") -> 
A77: =IF(A76="F",A76,"") ->  | F77: 0.49 | J77: =1-F77 -> 0.51 | N77: =IFERROR(E75/100,"") -> 0
A78: =IF(D78>0,"F","") ->  | B78: FERRAGENS | D78: =Orçamento!V245 -> 0 | E78: =Orçamento!X245 -> 0 | F78: =ROUND(F80*$D$78,2) -> 0 | J78: =ROUND(J80*$D$78,2) -> 0 | N78: =SUM(F78:M78) -> 0
A79: =IF(A78="F",A78,"") -> 
A80: =IF(A79="F",A79,"") ->  | F80: 0 | J80: =1-F80 -> 1 | N80: =IFERROR(E78/100,"") -> 0
A81: =IF(D81>0,"F","") ->  | B81: MARCENARIA | D81: =Orçamento!V246 -> 0 | E81: =Orçamento!X246 -> 0 | F81: =ROUND(F83*$D$81,2) -> 0 | J81: =ROUND(J83*$D$81,2) -> 0 | N81: =SUM(F81:M81) -> 0
A82: =IF(A81="F",A81,"") -> 
A83: =IF(A82="F",A82,"") ->  | F83: 0.4 | J83: =1-F83 -> 0.6 | N83: =IFERROR(E81/100,"") -> 0
A84: =IF(D84>0,"F","") ->  | B84: ADMINISTRAÇÃO - MENSALISTAS | D84: =Orçamento!V247 -> 0 | E84: =Orçamento!X247 -> 0 | F84: =ROUND(F86*$D$84,2) -> 0 | J84: =ROUND(J86*$D$84,2) -> 0 | N84: =SUM(F84:M84) -> 0
A85: =IF(A84="F",A84,"") -> 
A86: =IF(A85="F",A85,"") ->  | F86: 0.49 | J86: =1-F86 -> 0.51 | N86: =IFERROR(E84/100,"") -> 0
A87: =IF(D87>0,"F","") ->  | B87: PINTURA | D87: =Orçamento!V248 -> 0 | E87: =Orçamento!X248 -> 0 | F87: =ROUND(F89*$D$87,2) -> 0 | J87: =ROUND(J89*$D$87,2) -> 0 | N87: =SUM(F87:M87) -> 0
A88: =IF(A87="F",A87,"") -> 
A89: =IF(A88="F",A88,"") ->  | F89: 0 | J89: =1-F89 -> 1 | N89: =IFERROR(E87/100,"") -> 0
A90: =IF(D90>0,"F","") ->  | B90: DIVERSOS | D90: =Orçamento!V249 -> 0 | E90: =Orçamento!X249 -> 0 | F90: =ROUND(F92*$D$90,2) -> 0 | J90: =ROUND(J92*$D$90,2) -> 0 | N90: =SUM(F90:M90) -> 0
A91: =IF(A90="F",A90,"") -> 
A92: =IF(A91="F",A91,"") ->  | F92: 0.46 | J92: =1-F92 -> 0.54 | N92: =IFERROR(E90/100,"") -> 0
A93: F | B93: CUSTO DO ORÇAMENTO | D93: =SUM(D15:D92) -> 0 | E93: =SUM(E15:E92) -> 0 | F93: =F15+F18+F21+F24+F27+F30+F33+F36+F39+F42+F45+F48+F51+F54+F57+F60+F63+F66+F69+F72+F75+F78+F81+F84+F87+F90 -> 0 | J93: =J15+J18+J21+J24+J27+J30+J33+J36+J39+J42+J45+J48+J51+J54+J57+J60+J63+J66+J69+J72+J75+J78+J81+J84+J87+J90 -> 0 | N93: =N15+N18+N21+N24+N27+N30+N33+N36+N39+N42+N45+N48+N51+N54+N57+N60+N63+N66+N69+N72+N75+N78+N81+N84+N87+N90 -> 0
A94: F | B94: PERCENTUAIS: | F94: =IFERROR(F93/D93,"") ->  | J94: =IFERROR(J93/D93,"") ->  | N94: =SUM(F94:M94) -> 0
A95: F | B95: TOTAIS ACUMULADOS: | F95: =F93 -> 0 | J95: =F95+J93 -> 0
A96: F | B96: PERCENTUAIS ACUMULADOS: | F96: =F94 ->  | J96: =IFERROR(F96+J94,"") -> 
A97: F
A98: F | B98: OBSERVAÇÕES:
A99: F | B99: Os pagamentos somente poderão ser efetuados mediante medição e atesto pelos técnicos da Secretaria da Educação.

Sheet Composição BDI
A3: UNIDADE ESCOLAR
A4: =Orçamento!$O$4 -> COLÉGIO ESTADUAL JOÃO BÊNNIO
A6: OBRA
A7: =Orçamento!$O$7 -> AMPLIAÇÃO E REFORMA
A9: ENDEREÇO
A10: =Orçamento!$R$10 -> RUA JC QUADRA 140 AREA VERDE S/N, JD CURITIBA III, CEP:74481-130
A12: CIDADE
A13: =Orçamento!$V$7 -> GOIÂNIA
A15: CRE
A16: =Orçamento!$O$10 -> GOIÂNIA
A18: DETALHAMENTO DA COMPOSIÇÃO DE BDI
A19: COMPOSIÇÃO BDI PARA OBRAS CIVIS | F19: BDI CONSTRUÇÃO E REFORMA
A20: DESCRIÇÃO | B20: COEF. | C20: TAXA % (a.m) | D20: % no preço de venda | F20: Situação | G20: 1º Quartil | H20: Médio | I20: 3º Quartil
A21: 1) COFINS | B21: 1 | C21: 0.03 | D21: =C21 -> 0.03 | F21: =IF(OR(C21<G21,C21>I21),"FORA DO INTERVALO","OK") -> OK | G21: 0.03 | H21: 0.03 | I21: 0.03
A22: 2) PIS | B22: 1 | C22: 0.0065 | D22: =C22 -> 0.0065 | F22: =IF(OR(C22<G22,C22>I22),"FORA DO INTERVALO","OK") -> OK | G22: 0.0065 | H22: 0.0065 | I22: 0.0065
A23: 3) ISSQN | B23: 1 | C23: 0.03 | D23: =C23*B23 -> 0.03 | F23: OK | G23: 0.02 | H23: 0.035 | I23: 0.05
A24: 4) CPRB | B24: 1 | C24: 0 | D24: =C24 -> 0 | F24: FORA DO INTERVALO | G24: 0.045 | H24: 0.045 | I24: 0.045
A25: 5) Administração Central | B25: 1 | C25: 0.04 | D25: 0.04 | F25: OK | G25: 0.03 | H25: 0.04 | I25: 0.055
A26: 6) Despesas Financeiras | B26: 1 | C26: 0.0056 | D26: 0.0056 | F26: FORA DO INTERVALO | G26: 0.0059 | H26: 0.0123 | I26: 0.0139
A27: 7) Seguros + Garantias | B27: 1 | C27: 0.0012 | D27: 0.0012 | F27: FORA DO INTERVALO | G27: 0.008 | H27: 0.008 | I27: 0.01
A28: 8) Risco | B28: 1 | C28: 0.0097 | D28: 0.0097 | F28: OK | G28: 0.0097 | H28: 0.0127 | I28: 0.0127
A29: 9) Lucro | B29: 1 | C29: 0.0631 | D29: 0.0631 | F29: OK | G29: 0.0616 | H29: 0.074 | I29: 0.0896
A30: BDI - FINAL | D30: =(((1+D25+D27+D28)*(1+D26)*(1+D29))/(1-(D21+D22+D23+D24))-1) -> 0.203500992 | F30: =IF(OR(D30<G30,D30>I30),"FORA DO INTERVALO","OK") -> OK | G30: 0.2034 | H30: 0.2212 | I30: 0.25
A32: Notas:
A33: (1) e (2) Alíquota definida por lei.
A34: (3) Alíquota e base de cálculo definidas pela legislação municipal.
A35: (4) Alíquota definida pelas leis 12.546/11, 12844/13 e 13.161/15 (CPRB – contribuição previdenciária sobre a receita bruta).
A36: (5) Valores definidos a partir dos limites no Acórdão nº 2.622/2013 - TCU – Plenário. Valores entre o 1º e 3º quartis.
A37: (6) Valor calculado pela expressão matemática do acórdão 2.369/2011 – TCU – Plenário e disponibilizado pela AGETOP em dezembro de 2018. (Foi utilizado para o cálculo a média da Taxa SELIC no período de 11/2017 a 10/2018)
A39: (7) Valores definidos pela AGETOP a partir dos limites no Acórdão nº 2.622/2013 - TCU – Plenário. Valores médios. Observação da AGETOP: (Seguros contra erros de execução, incêndio e explosão, danos da natureza (vendaval, destelhamento, alagamento, inundação, desmoronamento, geadas etc.), emprego de material defeituoso ou inadequado, roubo e/ou furto qualificado, quebra de equipamentos, desmoronamento de estrutura, nas modalidades de Obras Civis em Construção (OCC); Instalação e Montagem (IM); e Obras Civis em Construção e Instalação e Montagem (OCC/IM). Bem como coberturas adicionais para ampliação dessas coberturas básicas, como: cobertura de responsabilidade civil geral, cobertura de responsabilidade civil cruzada, cobertura de despesas extraordinárias, cobertura de tumultos, cobertura de desentulho do local, cobertura de riscos do fabricante, dentre outras, incluindo o seguro de vida em grupo regido pela convenção coletiva dos trabalhadores na indústria da construção civil). A partir de 24/02/2015 por intermédio da Portaria 449/2015 a Presidência da AGETOP, na pessoa do Senhor Jayme Eduardo Rincon, determinou a exclusão dos valores referentes aos Seguros de Risco de Engenharia e Responsabilidade Civil do Profissional na composição do cálculo do B.D.I..
A40: (8) Valores definidos a partir dos limites no Acórdão nº 2.622/2013 - TCU – Plenário. Valores entre 1º e 3° quartis.
A41: (9) Valores definidos a partir dos limites definidos no Acórdão nº 2.622/2013 - TCU – Plenário. Valores adotados e praticados no mercado ( “ ex ante ” ) ou aqueles entre os 1º e 3º quartis.
A43: (*) A fórmula para estipulação da taxa de BDI estimado adotado é a mesma que foi aplicada para a obtenção das tabelas contidas no Acórdão n. 2.622/2013 – TCUPlenário
A45: Obs.: Para obras com valores superiores a R$ 20.000.000,00 sugere-se recalcular o BDI, dimensionando as taxas de administração central e lucro para patamares inferiores ao estipulado acima.

Sheet Relatório CENTRAL
B3: UNIDADE ESCOLAR | D3: CIDADE
B4: =Orçamento!$O$4 -> COLÉGIO ESTADUAL JOÃO BÊNNIO | D4: =Orçamento!$V$7 -> GOIÂNIA
B6: OBRA | D6: CRE
B7: =Orçamento!$O$7 -> AMPLIAÇÃO E REFORMA | D7: =Orçamento!$O$10 -> GOIÂNIA
B9: ENDEREÇO | D9: DATA
A10: FILTRO | B10: =Orçamento!$R$10 -> RUA JC QUADRA 140 AREA VERDE S/N, JD CURITIBA III, CEP:74481-130 | D10: =Orçamento!$S$7 -> 2020-04-08
B12: RELATÓRIO CENTRAL
A13: ↓ | B13: CÓDIGO | C13: ETAPA | D13: PREÇO (R$) C/ BDI | E13: PARTIC ( % )
A14: =IF(D14>0,"F","") ->  | B14: =Orçamento!O224 -> a. | C14: =Orçamento!P224 -> SERVIÇOS PRELIMINARES | D14: =Orçamento!V224 -> 0 | E14: =Orçamento!X224 -> 0 | F14: 1 | G14: 8
A15: =IF(D15>0,"F","") ->  | B15: =Orçamento!O225 -> b. | C15: =Orçamento!P225 -> TRANSPORTES | D15: =Orçamento!V225 -> 0 | E15: =Orçamento!X225 -> 0 | F15: 8 | G15: 8
B16: =Orçamento!O226 -> c. | C16: =Orçamento!P226 -> SERVIÇO EM TERRA | D16: =Orçamento!V226 -> 0 | E16: =Orçamento!X226 -> 0 | F16: 6 | G16: 1
B17: =Orçamento!O227 -> d. | C17: =Orçamento!P227 -> FUNDAÇÕES E SONDAGENS | D17: =Orçamento!V227 -> 0 | E17: =Orçamento!X227 -> 0 | F17: 8 | G17: 5
B18: =Orçamento!O228 -> e. | C18: =Orçamento!P228 -> ESTRUTURA | D18: =Orçamento!V228 -> 0 | E18: =Orçamento!X228 -> 0
B19: =Orçamento!O229 -> f. | C19: =Orçamento!P229 -> INSTALAÇÕES ELÉTRICAS | D19: =Orçamento!V229 -> 0 | E19: =Orçamento!X229 -> 0 | F19: 8 | G19: 9
B20: =Orçamento!O230 -> g. | C20: =Orçamento!P230 -> INSTALAÇÕES HIDROSSANITÁRIAS | D20: =Orçamento!V230 -> 0 | E20: =Orçamento!X230 -> 0 | F20: 4 | G20: 3
B21: =Orçamento!O231 -> h | C21: =Orçamento!P231 -> INSTALAÇÕES ESPECIAIS | D21: =Orçamento!V231 -> 0 | E21: =Orçamento!X231 -> 0 | F21: 2 | G21: 5
B22: =Orçamento!O232 -> i. | C22: =Orçamento!P232 -> ALVENARIAS E DIVISÓRIAS | D22: =Orçamento!V232 -> 0 | E22: =Orçamento!X232 -> 0
B23: =Orçamento!O233 -> j. | C23: =Orçamento!P233 -> ALVENARIA AUTO-PORTANTE | D23: =Orçamento!V233 -> 0 | E23: =Orçamento!X233 -> 0
B24: =Orçamento!O234 -> k. | C24: =Orçamento!P234 -> IMPERMEABILIZAÇÃO | D24: =Orçamento!V234 -> 0 | E24: =Orçamento!X234 -> 0
B25: =Orçamento!O235 -> l. | C25: =Orçamento!P235 -> ISOLAMENTO TÉRMICO E ACÚSTICO | D25: =Orçamento!V235 -> 0 | E25: =Orçamento!X235 -> 0
B26: =Orçamento!O236 -> m. | C26: =Orçamento!P236 -> ESTRUTURA DE MADEIRA | D26: =Orçamento!V236 -> 0 | E26: =Orçamento!X236 -> 0
B27: =Orçamento!O237 -> n. | C27: =Orçamento!P237 -> ESTRUTURAS METÁLICAS | D27: =Orçamento!V237 -> 0 | E27: =Orçamento!X237 -> 0 | F27: 1 | G27: 2
B28: =Orçamento!O238 -> o. | C28: =Orçamento!P238 -> COBERTURAS | D28: =Orçamento!V238 -> 0 | E28: =Orçamento!X238 -> 0 | F28: 9 | G28: 9
B29: =Orçamento!O239 -> p. | C29: =Orçamento!P239 -> ESQUADRIAS DE MADEIRA | D29: =Orçamento!V239 -> 0 | E29: =Orçamento!X239 -> 0
B30: =Orçamento!O240 -> q. | C30: =Orçamento!P240 -> ESQUADRIAS METÁLICAS | D30: =Orçamento!V240 -> 0 | E30: =Orçamento!X240 -> 0
B31: =Orçamento!O241 -> r. | C31: =Orçamento!P241 -> VIDROS | D31: =Orçamento!V241 -> 0 | E31: =Orçamento!X241 -> 0
B32: =Orçamento!O242 -> s. | C32: =Orçamento!P242 -> REVESTIMENTO DE PAREDE | D32: =Orçamento!V242 -> 0 | E32: =Orçamento!X242 -> 0
B33: =Orçamento!O243 -> t. | C33: =Orçamento!P243 -> FORROS | D33: =Orçamento!V243 -> 0 | E33: =Orçamento!X243 -> 0 | F33: 6 | G33: 7
B34: =Orçamento!O244 -> u. | C34: =Orçamento!P244 -> REVESTIMENTO DE PISO | D34: =Orçamento!V244 -> 0 | E34: =Orçamento!X244 -> 0 | F34: 7 | G34: 7
B35: =Orçamento!O245 -> v. | C35: =Orçamento!P245 -> FERRAGENS | D35: =Orçamento!V245 -> 0 | E35: =Orçamento!X245 -> 0 | F35: 2 | G35: 5
B36: =Orçamento!O246 -> w. | C36: =Orçamento!P246 -> MARCENARIA | D36: =Orçamento!V246 -> 0 | E36: =Orçamento!X246 -> 0
B37: =Orçamento!O247 -> x. | C37: =Orçamento!P247 -> ADMINISTRAÇÃO | D37: =Orçamento!V247 -> 0 | E37: =Orçamento!X247 -> 0 | F37: 1 | G37: 2
B38: =Orçamento!O248 -> y. | C38: =Orçamento!P248 -> PINTURA | D38: =Orçamento!V248 -> 0 | E38: =Orçamento!X248 -> 0 | F38: 5 | G38: 8
B39: =Orçamento!O249 -> z. | C39: =Orçamento!P249 -> DIVERSOS | D39: =Orçamento!V249 -> 0 | E39: =Orçamento!X249 -> 0 | F39: 9 | G39: 1
A40: F | B40: TOTAL GERAL DO ORÇAMENTO (R$) C/BDI | D40: =SUM(D14:D39) -> 0 | E40: =SUM(E14:E39) -> 0 | F40: =SUM(F14:F39) -> 77 | G40: =SUM(G14:G39) -> 80

Sheet Parc Maior Relev
B3: UNIDADE ESCOLAR | E3: CÓDIGO INEP
B4: =Orçamento!$O$4 -> COLÉGIO ESTADUAL JOÃO BÊNNIO | E4: =Orçamento!$V$4 -> 52035131
B6: OBRA | E6: CIDADE
B7: =Orçamento!$O$7 -> AMPLIAÇÃO E REFORMA | E7: =Orçamento!$V$7 -> GOIÂNIA
B9: CRE | E9: ÁREA TOTAL CONSTRUÍDA (M²)
B10: =Orçamento!$O$10 -> GOIÂNIA | E10: =Orçamento!$S$13 -> 1205
A11: FILTRO
B12: PARCELA DE MAIOR RELEVÂNCIA
B13: CÓDIGO | C13: SERVIÇO | D13: DESCRIÇÃO | E13: UNID | F13: QUANT | G13: PARC. MAIOR RELEV (100%)
B14: 70000 | C14: INSTALAÇÕES ELÉTRICAS | D14: SUBESTAÇÃO | E14: KVA | F14: =SUMIF(Orçamento!$R$205:$R$205,'Parc Maior Relev'!D14,Orçamento!$T$205:$T$205) -> 0 | G14: =F14 -> 0
B15: CÓDIGO | C15: SERVIÇO | D15: DESCRIÇÃO | E15: UNID | F15: QUANT | G15: PARC. MAIOR RELEV (50%)
B16: 70000 | C16: INSTALAÇÕES ELÉTRICAS | D16: INSTALAÇÕES ELÉTRICAS | E16: KVA | F16: 61.66 | G16: =F16*0.5 -> 30.83
B17: 160000 | C17: COBERTURAS | D17: TELHA CERÂMICA | E17: M2 | F17: =SUMIF(Orçamento!$R$205:$R$205,'Parc Maior Relev'!D17,Orçamento!$T$205:$T$205) -> 0 | G17: =F17*0.5 -> 0
B18: 160000 | C18: COBERTURAS | D18: TELHA FIBROCIMENTO | E18: M2 | F18: =SUMIF(Orçamento!$R$205:$R$205,'Parc Maior Relev'!D18,Orçamento!$T$205:$T$205) -> 0 | G18: 0
B19: 160000 | C19: COBERTURAS | D19: TELHA METÁLICA | E19: M2 | F19: =Orçamento!T197 -> 594.86 | G19: 297.43
B20: 200000 | C20: REVESTIMENTO DE PAREDE | D20: REBOCO | E20: M2 | F20: =SUMIF(Orçamento!$R$205:$R$205,'Parc Maior Relev'!D20,Orçamento!$T$205:$T$205) -> 0 | G20: =F20*0.5 -> 0
B21: 200000 | C21: REVESTIMENTO DE PAREDE | D21: REVESTIMENTO CERÂMICO | E21: M2 | F21: =SUMIF(Orçamento!$R$205:$R$205,'Parc Maior Relev'!D21,Orçamento!$T$205:$T$205) -> 0 | G21: 0
B22: 210000 | C22: FORROS | D22: FORRO DE GESSO | E22: M2 | F22: =SUMIF(Orçamento!$R$205:$R$205,'Parc Maior Relev'!D22,Orçamento!$T$205:$T$205) -> 0 | G22: =F22*0.5 -> 0
B23: 210000 | C23: FORROS | D23: FORRO PVC | E23: M2 | F23: =SUMIF(Orçamento!$R$205:$R$205,'Parc Maior Relev'!D23,Orçamento!$T$205:$T$205) -> 0 | G23: 0
B24: 210000 | C24: FORROS | D24: FORRO ACARTONADO | E24: M2 | F24: =SUMIF(Orçamento!$R$205:$R$205,'Parc Maior Relev'!D24,Orçamento!$T$205:$T$205) -> 0 | G24: 0
B25: 220000 | C25: REVESTIMENTO DE PISO | D25: PISO GRANITINA | E25: M2 | F25: =Orçamento!T129 -> 550 | G25: 275
B26: 220000 | C26: REVESTIMENTO DE PISO | D26: PISO LAMINADO | E26: M2 | F26: =SUMIF(Orçamento!$R$205:$R$205,'Parc Maior Relev'!D26,Orçamento!$T$205:$T$205) -> 0 | G26: 0
B27: 220000 | C27: REVESTIMENTO DE PISO | D27: PISO CONCRETO DESEMPENADO | E27: M2 | F27: =SUMIF(Orçamento!$R$205:$R$205,'Parc Maior Relev'!D27,Orçamento!$T$205:$T$205) -> 0 | G27: 0
B28: 220000 | C28: REVESTIMENTO DE PISO | D28: PISO CERÂMICO | E28: M2 | F28: =SUMIF(Orçamento!$R$205:$R$205,'Parc Maior Relev'!D28,Orçamento!$T$205:$T$205) -> 0 | G28: =F28*0.5 -> 0
B29: 260000 | C29: PINTURA | D29: PINTURA | E29: M2 | F29: =SUMIF(Orçamento!$R$205:$R$205,'Parc Maior Relev'!D29,Orçamento!$T$205:$T$205) -> 0 | G29: 0
A30: F
A31: F | B31: (*) Para os fins do inciso I dp § 1º do Art. 30 da Lei Federal 8.666/93, são consideradas parcelas de maior relevância técnica as execuções apresentadas
A32: F

Sheet Composições
A4: UNIDADE ESCOLAR | H4: CÓDIGO INEP
A5: =Orçamento!$O$4 -> COLÉGIO ESTADUAL JOÃO BÊNNIO | H5: =Orçamento!$V$4 -> 52035131
A7: OBRA | H7: CIDADE
A8: =Orçamento!$O$7 -> AMPLIAÇÃO E REFORMA | H8: =Orçamento!$V$7 -> GOIÂNIA
A10: CRE | D10: ENDEREÇO | H10: REFERÊNCIA AGETOP
A11: =Orçamento!$O$10 -> GOIÂNIA | D11: =Orçamento!$R$10 -> RUA JC QUADRA 140 AREA VERDE S/N, JD CURITIBA III, CEP:74481-130 | H11: =Orçamento!$V$10 -> DEZ/18 | I11: =Orçamento!$W$10 -> ONERADA
A13: DATA | D13: ÁREA TOTAL CONSTRUÍDA (M²) | H13: REFERÊNCIA SINAPI
A14: =Orçamento!$S$7 -> 2020-04-08 | D14: =Orçamento!$S$13 -> 1205 | H14: =Orçamento!$V$13 -> AGO/19 | I14: =Orçamento!$W$13 -> ONERADA
A16: COMPOSIÇÕES DE CUSTOS UNITÁRIOS - SEE-GO
A17: 24 | B17: FONTE | C17: CÓDIGO | D17: DESCRIÇÃO | E17: UNIDADE | F17: COEFIC. | G17: CUSTO UNITÁRIO | I17: CUSTO TOTAL (A) + (B) + (C) + (D) + (E)
G18: DESONERADO | H18: NÃO DESONER. | I18: DESONERADO | J18: NÃO DESONER.
B19: COMPOSIÇÃO | C19: COMP 024_SEE | D19: SINALIZADOR FOTOLUMINESCENTE PARA EXTINTOR | E19: UN | G19: - | H19: - | I19: 24.11 | J19: 24.23
B20: AGETOP_I | C20: 5 | D20: SERVENTE | E20: h | F20: 0.09 | G20: 8.2 | H20: 9.51 | I20: 0.74 | J20: 0.86
G21: 0 | H21: 0 | I21: 0 | J21: 0
G22: 0 | H22: 0 | I22: 0 | J22: 0
B23: MÃO DE OBRA (B) - TOTAL | I23: 0.74 | J23: 0.86
B24: AGETOP_I | C24: 3070 | D24: BUCHA DE NYLON S-6 | E24: un | F24: 2 | G24: 0.04 | H24: 0.04 | I24: 0.08 | J24: 0.08
B25: AGETOP_I | C25: 3393 | D25: PARAFUSO P/BUCHA S-6 | E25: un | F25: 2 | G25: 0.08 | H25: 0.08 | I25: 0.16 | J25: 0.16
B26: SINAPI_I | C26: 37556 | D26: PLACA DE SINALIZACAO DE SEGURANCA CONTRA INCENDIO, FOTOLUMINESCENTE, QUADRADA, *20 X 20* CM, EM PVC *2* MM ANTI-CHAMAS (SIMBOLOS, CORES E PICTOGRAMAS CONFORME NBR 13434) | E26: UN | F26: 1 | G26: 23.13 | H26: 23.13 | I26: 23.13 | J26: 23.13
B27: MATERIAL (C) - TOTAL | I27: 23.37 | J27: 23.37
A29: 25 | B29: FONTE | C29: CÓDIGO | D29: DESCRIÇÃO | E29: UNIDADE | F29: COEFIC. | G29: CUSTO UNITÁRIO | I29: CUSTO TOTAL (A) + (B) + (C) + (D) + (E)
G30: DESONERADO | H30: NÃO DESONER. | I30: DESONERADO | J30: NÃO DESONER.
B31: COMPOSIÇÃO | C31: COMP 025_SEE | D31: SINALIZADOR FOTOLUMINESCENTE DE EMERGÊNCIA | E31: UN | G31: - | H31: - | I31: 24.11 | J31: 24.23
B32: AGETOP_I | C32: 5 | D32: SERVENTE | E32: h | F32: 0.09 | G32: 8.2 | H32: 9.51 | I32: 0.74 | J32: 0.86
B33: MÃO DE OBRA (B) - TOTAL | I33: 0.74 | J33: 0.86
B34: AGETOP_I | C34: 3070 | D34: BUCHA DE NYLON S-6 | E34: un | F34: 2 | G34: 0.04 | H34: 0.04 | I34: 0.08 | J34: 0.08
B35: AGETOP_I | C35: 3393 | D35: PARAFUSO P/BUCHA S-6 | E35: un | F35: 2 | G35: 0.08 | H35: 0.08 | I35: 0.16 | J35: 0.16
B36: SINAPI_I | C36: 37556 | D36: PLACA DE SINALIZACAO DE SEGURANCA CONTRA INCENDIO, FOTOLUMINESCENTE, QUADRADA, *20 X 20* CM, EM PVC *2* MM ANTI-CHAMAS (SIMBOLOS, CORES E PICTOGRAMAS CONFORME NBR 13434) | E36: UN | F36: 1 | G36: 23.13 | H36: 23.13 | I36: 23.13 | J36: 23.13
B37: MATERIAL (C) - TOTAL | I37: 23.37 | J37: 23.37
A39: 277 | B39: FONTE | C39: CÓDIGO | D39: DESCRIÇÃO | E39: UNIDADE | F39: COEFIC. | G39: CUSTO UNITÁRIO | I39: CUSTO TOTAL (A) + (B) + (C) + (D) + (E)
G40: DESONERADO | H40: NÃO DESONER. | I40: DESONERADO | J40: NÃO DESONER.
B41: COMPOSIÇÃO | C41: COMP 277_SEE | D41: MARCAÇÃO NO PISO - 1X1 M PARA EXTINTOR | E41: M2 | I41: 28.81 | J41: 28.88
B42: AGETOP_I | C42: 5 | D42: SERVENTE | E42: h | F42: 0.0333 | G42: 8.2 | H42: 9.51 | I42: 0.27 | J42: 0.32
G43: 0 | H43: 0 | I43: 0 | J43: 0
G44: 0 | H44: 0 | I44: 0 | J44: 0
B45: MÃO DE OBRA (B) - TOTAL | I45: 0.27 | J45: 0.32
B46: SINAPI_I | C46: 5318 | D46: SOLVENTE DILUENTE A BASE DE AGUARRAS | E46: L | F46: 0.13 | G46: 11.78 | H46: 11.78 | I46: 1.53 | J46: 1.53
B47: SINAPI | C47: 5824 | D47: CAMINHÃO TOCO, PBT 16.000 KG, CARGA ÚTIL MÁX. 10.685 KG, DIST. ENTRE EIXOS 4,8 M, POTÊNCIA 189 CV, INCLUSIVE CARROCERIA FIXA ABERTA DE MADEIRA P/ TRANSPORTE GERAL DE CARGA SECA, DIMEN. APROX. 2,5 X 7,00 X 0,50 M - CHP DIURNO. AF_06/2014 | E47: CHP | F47: 0.0033 | G47: 135.91 | H47: 139.12 | I47: 0.45 | J47: 0.46
B48: SINAPI_I | C48: 7343 | D48: TINTA A BASE DE RESINA ACRILICA, PARA SINALIZACAO HORIZONTAL VIARIA (NBR 11862) | E48: L | F48: 0.6 | G48: 11.38 | H48: 11.38 | I48: 6.83 | J48: 6.83
B49: SINAPI_I | C49: 7348 | D49: TINTA ACRILICA PREMIUM PARA PISO | E49: L | F49: 0.03 | G49: 12.4 | H49: 12.4 | I49: 0.37 | J49: 0.37
B50: SINAPI_I | C50: 25972 | D50: MICROESFERAS DE VIDRO PARA SINALIZACAO HORIZONTAL VIARIA, TIPO I-B (PREMIX) - NBR 16184 | E50: KG | F50: 2.14 | G50: 8.88 | H50: 8.88 | I50: 19 | J50: 19
B51: SINAPI | C51: 95133 | D51: MÁQUINA DEMARCADORA DE FAIXA DE TRÁFEGO À FRIO, AUTOPROPELIDA, POTÊNCIA 38 HP - CHP DIURNO. AF_07/2016 | E51: CHP | F51: 0.0033 | G51: 109.81 | H51: 113.39 | I51: 0.36 | J51: 0.37
B52: MATERIAL (C) - TOTAL | I52: 28.54 | J52: 28.56
A54: 235 | B54: FONTE | C54: CÓDIGO | D54: DESCRIÇÃO | E54: UNIDADE | F54: COEFIC. | G54: CUSTO UNITÁRIO | I54: CUSTO TOTAL (A) + (B) + (C) + (D) + (E)
G55: DESONERADO | H55: NÃO DESONER. | I55: DESONERADO | J55: NÃO DESONER.
B56: COMPOSIÇÃO | C56: COMP 235_SEE | D56: PLACA DE SINALIZAÇÃO EM PVC COD 01 - (300X300) PROIBIDO FUMAR | E56: UN | I56: 24.11 | J56: 24.23
B57: AGETOP_I | C57: 5 | D57: SERVENTE | E57: h | F57: 0.09 | G57: 8.2 | H57: 9.51 | I57: 0.74 | J57: 0.86
G58: 0 | H58: 0 | I58: 0 | J58: 0
G59: 0 | H59: 0 | I59: 0 | J59: 0
B60: MÃO DE OBRA (B) - TOTAL | I60: 0.74 | J60: 0.86
B61: AGETOP_I | C61: 3070 | D61: BUCHA DE NYLON S-6 | E61: un | F61: 2 | G61: 0.04 | H61: 0.04 | I61: 0.08 | J61: 0.08
B62: AGETOP_I | C62: 3393 | D62: PARAFUSO P/BUCHA S-6 | E62: un | F62: 2 | G62: 0.08 | H62: 0.08 | I62: 0.16 | J62: 0.16
B63: SINAPI_I | C63: 37556 | D63: PLACA DE SINALIZACAO DE SEGURANCA CONTRA INCENDIO, FOTOLUMINESCENTE, QUADRADA, *20 X 20* CM, EM PVC *2* MM ANTI-CHAMAS (SIMBOLOS, CORES E PICTOGRAMAS CONFORME NBR 13434) | E63: UN | F63: 1 | G63: 23.13 | H63: 23.13 | I63: 23.13 | J63: 23.13
B64: MATERIAL (C) - TOTAL | I64: 23.37 | J64: 23.37
A66: 236 | B66: FONTE | C66: CÓDIGO | D66: DESCRIÇÃO | E66: UNIDADE | F66: COEFIC. | G66: CUSTO UNITÁRIO | I66: CUSTO TOTAL (A) + (B) + (C) + (D) + (E)
G67: DESONERADO | H67: NÃO DESONER. | I67: DESONERADO | J67: NÃO DESONER.
B68: COMPOSIÇÃO | C68: COMP 236_SEE | D68: PLACA DE SINALIZAÇÃO EM PVC COD 06 - (300X300) PERIGO INFLAMÁVEL | E68: UN | I68: 24.11 | J68: 24.23
B69: AGETOP_I | C69: 5 | D69: SERVENTE | E69: h | F69: 0.09 | G69: 8.2 | H69: 9.51 | I69: 0.74 | J69: 0.86
G70: 0 | H70: 0 | I70: 0 | J70: 0
G71: 0 | H71: 0 | I71: 0 | J71: 0
B72: MÃO DE OBRA (B) - TOTAL | I72: 0.74 | J72: 0.86
B73: AGETOP_I | C73: 3070 | D73: BUCHA DE NYLON S-6 | E73: un | F73: 2 | G73: 0.04 | H73: 0.04 | I73: 0.08 | J73: 0.08
B74: AGETOP_I | C74: 3393 | D74: PARAFUSO P/BUCHA S-6 | E74: un | F74: 2 | G74: 0.08 | H74: 0.08 | I74: 0.16 | J74: 0.16
B75: SINAPI_I | C75: 37556 | D75: PLACA DE SINALIZACAO DE SEGURANCA CONTRA INCENDIO, FOTOLUMINESCENTE, QUADRADA, *20 X 20* CM, EM PVC *2* MM ANTI-CHAMAS (SIMBOLOS, CORES E PICTOGRAMAS CONFORME NBR 13434) | E75: UN | F75: 1 | G75: 23.13 | H75: 23.13 | I75: 23.13 | J75: 23.13
B76: MATERIAL (C) - TOTAL | I76: 23.37 | J76: 23.37
A78: 411 | B78: FONTE | C78: CÓDIGO | D78: DESCRIÇÃO | E78: UNIDADE | F78: COEFIC. | G78: CUSTO UNITÁRIO | I78: CUSTO TOTAL (A) + (B) + (C) + (D) + (E)
G79: DESONERADO | H79: NÃO DESONER. | I79: DESONERADO | J79: NÃO DESONER.
B80: COMPOSIÇÃO | C80: COMP 411_SEE | D80: PLACA DE SINALIZAÇÃO EM PVC COD 13 - (316X158) SAÍDA DE EMERGÊNCIA | E80: UN | I80: 29.35 | J80: 29.47
B81: AGETOP_I | C81: 5 | D81: SERVENTE | E81: h | F81: 0.09 | G81: 8.2 | H81: 9.51 | I81: 0.74 | J81: 0.86
G82: 0 | H82: 0 | I82: 0 | J82: 0
G83: 0 | H83: 0 | I83: 0 | J83: 0
B84: MÃO DE OBRA (B) - TOTAL | I84: 0.74 | J84: 0.86
B85: AGETOP_I | C85: 3070 | D85: BUCHA DE NYLON S-6 | E85: un | F85: 2 | G85: 0.04 | H85: 0.04 | I85: 0.08 | J85: 0.08
B86: AGETOP_I | C86: 3393 | D86: PARAFUSO P/BUCHA S-6 | E86: un | F86: 2 | G86: 0.08 | H86: 0.08 | I86: 0.16 | J86: 0.16
B87: SINAPI_I | C87: 37559 | D87: PLACA DE SINALIZACAO DE SEGURANCA CONTRA INCENDIO, FOTOLUMINESCENTE, RETANGULAR, *12 X 40* CM, EM PVC *2* MM ANTI-CHAMAS (SIMBOLOS, CORES E PICTOGRAMAS CONFORME NBR 13434) | E87: UN | F87: 1 | G87: 28.37 | H87: 28.37 | I87: 28.37 | J87: 28.37
B88: MATERIAL (C) - TOTAL | I88: 28.61 | J88: 28.61
A90: 412 | B90: FONTE | C90: CÓDIGO | D90: DESCRIÇÃO | E90: UNIDADE | F90: COEFIC. | G90: CUSTO UNITÁRIO | I90: CUSTO TOTAL (A) + (B) + (C) + (D) + (E)
G91: DESONERADO | H91: NÃO DESONER. | I91: DESONERADO | J91: NÃO DESONER.
B92: COMPOSIÇÃO | C92: COMP 412_SEE | D92: PLACA DE SINALIZAÇÃO EM PVC COD 17 - (316X158) MENSAGEM "SAÍDA" | E92: UN | I92: 29.35 | J92: 29.47
B93: AGETOP_I | C93: 5 | D93: SERVENTE | E93: h | F93: 0.09 | G93: 8.2 | H93: 9.51 | I93: 0.74 | J93: 0.86
G94: 0 | H94: 0 | I94: 0 | J94: 0
G95: 0 | H95: 0 | I95: 0 | J95: 0
B96: MÃO DE OBRA (B) - TOTAL | I96: 0.74 | J96: 0.86
B97: AGETOP_I | C97: 3070 | D97: BUCHA DE NYLON S-6 | E97: un | F97: 2 | G97: 0.04 | H97: 0.04 | I97: 0.08 | J97: 0.08
B98: AGETOP_I | C98: 3393 | D98: PARAFUSO P/BUCHA S-6 | E98: un | F98: 2 | G98: 0.08 | H98: 0.08 | I98: 0.16 | J98: 0.16
B99: SINAPI_I | C99: 37559 | D99: PLACA DE SINALIZACAO DE SEGURANCA CONTRA INCENDIO, FOTOLUMINESCENTE, RETANGULAR, *12 X 40* CM, EM PVC *2* MM ANTI-CHAMAS (SIMBOLOS, CORES E PICTOGRAMAS CONFORME NBR 13434) | E99: UN | F99: 1 | G99: 28.37 | H99: 28.37 | I99: 28.37 | J99: 28.37
B100: MATERIAL (C) - TOTAL | I100: 28.61 | J100: 28.61
A102: 74 | B102: FONTE | C102: CÓDIGO | D102: DESCRIÇÃO | E102: UNIDADE | F102: COEFIC. | G102: CUSTO UNITÁRIO | I102: CUSTO TOTAL (A) + (B) + (C) + (D) + (E)
G103: DESONERADO | H103: NÃO DESONER. | I103: DESONERADO | J103: NÃO DESONER.
B104: COMPOSIÇÃO | C104: COMP 074_SEE | D104: RALO SEMI-ESFERICO FoFo TP ABACAXI D = 150MM | E104: UN | I104: 48.48 | J104: 51.58
B105: AGETOP_I | C105: 8 | D105: AJUDANTE | E105: h | F105: 0.9 | G105: 8.2 | H105: 9.51 | I105: 7.38 | J105: 8.56
B106: AGETOP_I | C106: 11 | D106: ENCANADOR | E106: h | F106: 0.9 | G106: 13.4 | H106: 15.53 | I106: 12.06 | J106: 13.98
B107: MÃO DE OBRA (B) - TOTAL | I107: 19.44 | J107: 22.54
B108: SINAPI_I | C108: 11709 | D108: RALO FOFO SEMIESFERICO, 150 MM, PARA LAJES/ CALHAS | E108: UN | F108: 1 | G108: 29.04 | H108: 29.04 | I108: 29.04 | J108: 29.04
B109: MATERIAL (C) - TOTAL | I109: 29.04 | J109: 29.04

Sheet Cotações
A4: UNIDADE ESCOLAR | H4: CÓDIGO INEP
A5: =Orçamento!$O$4 -> COLÉGIO ESTADUAL JOÃO BÊNNIO | H5: =Orçamento!$V$4 -> 52035131
A7: OBRA | H7: CIDADE
A8: =Orçamento!$O$7 -> AMPLIAÇÃO E REFORMA | H8: =Orçamento!$V$7 -> GOIÂNIA
A10: CRE | D10: ENDEREÇO | H10: REFERÊNCIA AGETOP
A11: =Orçamento!$O$10 -> GOIÂNIA | D11: =Orçamento!$R$10 -> RUA JC QUADRA 140 AREA VERDE S/N, JD CURITIBA III, CEP:74481-130 | H11: =Orçamento!$V$10 -> DEZ/18 | I11: =Orçamento!$W$10 -> ONERADA
A13: DATA | D13: ÁREA TOTAL CONSTRUÍDA (M²) | H13: REFERÊNCIA SINAPI
A14: =Orçamento!$S$7 -> 2020-04-08 | D14: =Orçamento!$S$13 -> 1205 | H14: =Orçamento!$V$13 -> AGO/19 | I14: =Orçamento!$W$13 -> ONERADA
A16: COTAÇÕES DE PREÇOS - SEE-GO
